Workbook

Sheet index
A1: Ankünfte und Übernachtungen in den Beherbergungsbetrieben nach Herkunftsland der Gäste - Tourismusjahre 2020/21 und 2019/20 | B1: Tab.1 nat | C1: Arrivi e presenze negli esercizi ricettivi per paese di provenienza - Anni turistici 2020/21 e 2019/20
A2: Ankünfte und Übernachtungen in den Beherbergungsbetrieben nach Betriebskategorie und -art und Bezirksgemeinschaft - Tourismusjahre 2020/21 und 2019/20 | B2: Tab. 1 cat | C2: Arrivi e presenze negli esercizi ricettivi per paese di provenienza e per comunità comprensoriale - Anni turistici 2020/21 e 2019/20
A3: Ankünfte und Übernachtungen der inländischen Gäste in den Beherbergungsbetrieben nach Herkunftsgebiet - Tourismusjahre 2020/21 und 2019/20 | B3: Tab. 2 | C3: Arrivi e presenze dall'Italia negli esercizi ricettivi per regione di provenienza - Anni turistici 2020/21 e 2019/20
A4: Beherbergungsbetriebe nach Betriebskategorie und -art - Tourismusjahr 2020/21 | B4: Tab. 4 | C4: Esercizi ricettivi per categoria e tipo d'esercizio - Anno turistico 2020/21
A5: Index der Bettenauslastung in den Beherbergungsbetrieben nach Betriebskategorie und -art - Tourismusjahr 2020/21 | B5: Tab. 5 | C5: Indice di utilizzazione dei posti letto negli esercizi ricettivi per categoria e tipo d'esercizio - Anno turistico 2020/21
A6: Index der Brutto-Auslastung der Betten in den gastgewerblichen Beherbergungsbetrieben - Tourismusjahre 1991/92-2020/21 | B6: Tab. 6 | C6: Indice di utilizzazione lordo dei posti letto negli esercizi alberghieri - Anni turistici 1991/92-2020/21
A7: Übernachtungen der Gäste in den Beherbergungsbetrieben nach Bezirksgemeinschaft - Tourismusjahre 1991/92-2020/21 | B7: Tab. 7 | C7: Presenze dei clienti negli esercizi ricettivi per comunità comprensoriale - Anni turistici 1991/92-2020/21
A8: Übernachtungen der inländischen und ausländischen Gäste in den Beherbergungsbetrieben nach Bezirksgemeinschaft - Tourismusjahre 1991/92-2020/21 | B8: Tab. 8 | C8: Presenze dall'Italia e dall'estero negli esercizi ricettivi per comunità comprensoriale - Anni turistici 1991/92-2020/21
A9: Übernachtungen in den Beherbergungsbetrieben nach Herkunftsland der Gäste - Tourismusjahre 1991/92-2020/21 | B9: Tab. 9 | C9: Presenze negli esercizi ricettivi per paese di provenienza - Anni turistici 1991/92-2020/21
A10: Übernachtungen der inländischen Gäste in den Beherbergungsbetrieben nach Bezirksgemeinschaft - Tourismusjahre 1991/92-2020/21 | B10: Tab. 10 | C10: Presenze dall'Italia negli esercizi ricettivi per comunità comprensoriale - Anni turistici 1991/92-2020/21
A11: Index der Brutto-Auslastung der Betten in den gastgewerblichen Beherbergungsbetrieben nach Bezirksgemeinschaft - Tourismusjahre 1991/92-2020/21 | B11: Tab. 11 | C11: Indice di utilizzazione lordo dei posti letto negli esercizi alberghieri per comunità comprensoriale - Anni turistici 1991/92-2020/21
A12: Ankünfte und Übernachtungen nach Gemeinde - Tourismusjahr 2020/21 | B12: Tab. 12 | C12: Arrivi e presenze per comune - Anno turistico 2020/21
A13: Ankünfte und Übernachtungen nach Tourismusverein und -verband - Tourismusjahr 2020/21 | B13: Tab. 13 | C13: Arrivi e presenze per associazioni e consorzi turistici - Anno turistico 2020/21
A14: Übernachtungen, Beherbergungsdichte, Tourismusintensität, Bettenauslastung nach Bezirksgemeinschaft - Tourismusjahr 2020/21 | B14: Tab.14 | C14: Presenze, densità ricettiva, intensità turistica, utilizzazione dei posti letto per comunità comprensoriale - Anno turistico 2020/21

Sheet tab1 nat
A1: Tab. 1 | H1: INDEX / INDICE
A3: Ankünfte und Übernachtungen in den Beherbergungsbetrieben nach Herkunftsland - Tourismusjahre 2020/21 und 2019/20
A5: Arrivi e presenze negli esercizi ricettivi per paese di provenienza - Anni turistici 2020/21 e 2019/20
C8: Tourismusjahr 2020/21 / Anno turistico 2020/21
C9: Ankünfte / Arrivi | E9: Übernachtungen / Presenze | H9: Mittlere
C10: Anzahl | D10: % Veränd. geg. 19/20 | E10: Anzahl | F10: % Veränd. geg. 19/20 | G10: % | H10: Aufenthaltsdauer
A11: Herkunftsland | B11: Paese di provenienza | C11: Numero | D11: Variaz. % rispetto 19/20 | E11: Numero | F11: Variaz. % rispetto 19/20 | H11: Permanenza media
A13: Deutschland | B13: Germania | C13: 2135327 | D13: 7.8 | E13: 10424102 | F13: 5 | G13: 49.1 | H13: 4.9
A14: Italien | B14: Italia | C14: 1771732 | D14: -28.2 | E14: 7952049 | F14: -21.7 | G14: 37.5 | H14: 4.5
A15: Schweiz und Liechtenstein | B15: Svizzera e Liechtenstein | C15: 208539 | D15: -9.9 | E15: 928330 | F15: -9.1 | G15: 4.4 | H15: 4.5
A16: Österreich | B16: Austria | C16: 223474 | D16: 16.5 | E16: 656657 | F16: 11.4 | G16: 3.1 | H16: 2.9
A17: Niederlande | B17: Paesi Bassi | C17: 84651 | D17: -2.7 | E17: 304098 | F17: -26.3 | G17: 1.4 | H17: 3.6
A18: Belgien | B18: Belgio | C18: 42518 | D18: -13.6 | E18: 189686 | F18: -23.6 | G18: 0.9 | H18: 4.5
A19: Übriges Europa | B19: Altri Paesi Europei | C19: 21910 | D19: -51.7 | E19: 109632 | F19: -57.8 | G19: 0.5 | H19: 5
A20: Frankreich | B20: Francia | C20: 31942 | D20: 4.2 | E20: 102484 | F20: -14.1 | G20: 0.5 | H20: 3.2
A21: Tschechische Republik | B21: Repubblica Ceca | C21: 20491 | D21: -64.4 | E21: 65657 | F21: -75.2 | G21: 0.3 | H21: 3.2
A22: Luxemburg | B22: Lussemburgo | C22: 9579 | D22: 0.4 | E22: 55020 | F22: -5.8 | G22: 0.3 | H22: 5.7
A23: Polen | B23: Polonia | C23: 14020 | D23: -70.9 | E23: 48132 | F23: -83 | G23: 0.2 | H23: 3.4
A24: Dänemark | B24: Danimarca | C24: 13320 | D24: 42 | E24: 33435 | F24: -20.1 | G24: 0.2 | H24: 2.5
A25: Spanien | B25: Spagna | C25: 10515 | D25: 15.6 | E25: 27887 | F25: -21.9 | G25: 0.1 | H25: 2.7
A26: Vereinigtes Königreich | B26: Regno Unito | C26: 6162 | D26: -81.4 | E26: 23162 | F26: -86.9 | G26: 0.1 | H26: 3.8
A27: Slowakei | B27: Slovacchia | C27: 4067 | D27: -60.4 | E27: 22763 | F27: -62.7 | G27: 0.1 | H27: 5.6
A28: Slowenien | B28: Slovenia | C28: 6422 | D28: -78.4 | E28: 20216 | F28: -84.1 | G28: 0.1 | H28: 3.1
A29: Ungarn | B29: Ungheria | C29: 4049 | D29: -25.7 | E29: 14451 | F29: -45.3 | G29: 0.1 | H29: 3.6
A30: Schweden | B30: Svezia | C30: 5121 | D30: -47 | E30: 14176 | F30: -70.8 | G30: 0.1 | H30: 2.8
A31: Kroatien | B31: Croazia | C31: 2132 | D31: -87.8 | E31: 8441 | F31: -90.5 | G31: 0 | H31: 4
A32: Norwegen | B32: Norvegia | C32: 2232 | D32: -59.7 | E32: 8349 | F32: -69.2 | G32: 0 | H32: 3.7
A33: Portugal | B33: Portogallo | C33: 2211 | D33: -14.1 | E33: 6190 | F33: -41.4 | G33: 0 | H33: 2.8
A34: Finnland | B34: Finlandia | C34: 1245 | D34: -58.4 | E34: 4999 | F34: -67.5 | G34: 0 | H34: 4
A35: Irland | B35: Irlanda | C35: 1208 | D35: -48.8 | E35: 4159 | F35: -60.4 | G35: 0 | H35: 3.4
A36: Griechenland | B36: Grecia | C36: 1171 | D36: -28.3 | E36: 3578 | F36: -50.1 | G36: 0 | H36: 3.1
A37: Türkei | B37: Turchia | C37: 515 | D37: -51.1 | E37: 1334 | F37: -72.5 | G37: 0 | H37: 2.6
A38: Europa insgesamt | B38: Paesi europei | C38: =SUM(C13:C37) -> 4624553 | D38: =(C38-C83)/C38*100 -> -15.47263054 | E38: =SUM(E13:E37) -> 21028987 | F38: =(E38-E83)/E38*100 -> -14.21465998 | G38: =SUM(G13:G37) -> 99 | H38: =E38/C38 -> 4.547247485
A40: Vereinigte Staaten | B40: Stati Uniti d'America | C40: 24286 | D40: 62.4 | E40: 69029 | F40: 19.2 | G40: 0.3 | H40: 2.8
A41: Sonstiges Länder Asiens | B41: Altri Paesi dell'Asia | C41: 15591 | D41: 1.6 | E41: 46364 | F41: -22.4 | G41: 0.2 | H41: 3
A42: Afrika | B42: Africa | C42: 2192 | D42: -52.9 | E42: 22579 | F42: -21.9 | G42: 0.1 | H42: 10.3
A43: Südamerika | B43: Sud America | C43: 4200 | D43: -43.9 | E43: 17375 | F43: -45.4 | G43: 0.1 | H43: 4.1
A44: Kanada | B44: Canada | C44: 2504 | D44: 2.1 | E44: 12794 | F44: -5.1 | G44: 0.1 | H44: 5.1
A45: Russland | B45: Russia | C45: 3080 | D45: -86.5 | E45: 12341 | F45: -91 | G45: 0.1 | H45: 4
A46: Andere Länder | B46: Altri Paesi | C46: 1158 | D46: -79.3 | E46: 3513 | F46: -87.7 | G46: 0 | H46: 3
A47: Japan | B47: Giappone | C47: 712 | D47: -45.2 | E47: 2862 | F47: -40.1 | G47: 0 | H47: 4
A48: Außereurop. Länder insgesamt | B48: Paesi extraeuropei | C48: =SUM(C40:C47) -> 53723 | D48: =(C48-C93)/C48*100 -> -38.74690542 | E48: =SUM(E40:E47) -> 186857 | F48: =(E48-E93)/E48*100 -> -93.91513296 | G48: =SUM(G40:G47) -> 0.9 | H48: =E48/C48 -> 3.478156469
A50: INSGESAMT | B50: TOTALE | C50: 4678276 | D50: -13.6 | E50: 21215844 | F50: -13 | G50: 100 | H50: 4.5
C53: Tourismusjahr 2019/20 / Anno turistico 2019/20
C54: Ankünfte / Arrivi | E54: Übernachtungen / Presenze | H54: Mittlere
C55: Anzahl | D55: % Veränd. geg. 18/19 | E55: Anzahl | F55: % Veränd. geg. 18/19 | G55: % | H55: Aufenthaltsdauer
A56: Herkunftsland | B56: Paese di provenienza | C56: Numero | D56: Variaz. % rispetto 18/19 | E56: Numero | F56: Variaz. % rispetto 18/19 | H56: Permanenza media
A58: Italien | B58: Italia | C58: 2467585 | D58: -4.4 | E58: 10150203 | F58: -0.6 | G58: 41.6 | H58: 4.1
A59: Deutschland | B59: Germania | C59: 1981376 | D59: -40.9 | E59: 9928810 | F59: -39.4 | G59: 40.7 | H59: 5
A60: Schweiz | B60: Svizzera e Liechtenstein | C60: 231443 | D60: -38.8 | E60: 1020863 | F60: -37 | G60: 4.2 | H60: 4.4
A61: Österreich | B61: Austria | C61: 191886 | D61: -49.2 | E61: 589554 | F61: -47.2 | G61: 2.4 | H61: 3.1
A62: Niederlande | B62: Paesi Bassi | C62: 87029 | D62: -36.2 | E62: 412529 | F62: -35 | G62: 1.7 | H62: 4.7
A63: Polen | B63: Polonia | C63: 48141 | D63: -23.6 | E63: 283625 | F63: -19.5 | G63: 1.2 | H63: 5.9
A64: Tschechische Republik | B64: Repubblica Ceca | C64: 57623 | D64: -36.2 | E64: 265103 | F64: -32.7 | G64: 1.1 | H64: 4.6
A65: Übriges Europa | B65: Altri Paesi Europei | C65: 45320 | D65: -31 | E65: 259500 | F65: -25 | G65: 1.1 | H65: 5.7
A66: Belgien | B66: Belgio | C66: 49223 | D66: -33.5 | E66: 248333 | F66: -36.5 | G66: 1 | H66: 5
A67: Vereinigtes Königreich | B67: Regno Unito | C67: 33076 | D67: -48.2 | E67: 176954 | F67: -40 | G67: 0.7 | H67: 5.3
A68: Slowenien | B68: Slovenia | C68: 29690 | D68: -18.6 | E68: 126785 | F68: -14.8 | G68: 0.5 | H68: 4.3
A69: Frankreich | B69: Francia | C69: 30661 | D69: -45.7 | E69: 119351 | F69: -42.6 | G69: 0.5 | H69: 3.9
A70: Kroatien | B70: Croazia | C70: 17477 | D70: -11.7 | E70: 89123 | F70: -9.3 | G70: 0.4 | H70: 5.1
A71: Slowakei | B71: Slovacchia | C71: 10279 | D71: -32.7 | E71: 60989 | F71: -26.7 | G71: 0.3 | H71: 5.9
A72: Luxemburg | B72: Lussemburgo | C72: 9538 | D72: -28.6 | E72: 58429 | F72: -28.5 | G72: 0.2 | H72: 6.1
A73: Schweden | B73: Svezia | C73: 9670 | D73: -59.9 | E73: 48480 | F73: -51.3 | G73: 0.2 | H73: 5
A74: Dänemark | B74: Danimarca | C74: 9378 | D74: -55.1 | E74: 41833 | F74: -45.6 | G74: 0.2 | H74: 4.5
A75: Spanien | B75: Spagna | C75: 9094 | D75: -55.4 | E75: 35725 | F75: -44.6 | G75: 0.1 | H75: 3.9
A76: Norwegen | B76: Norvegia | C76: 5541 | D76: -63.4 | E76: 27128 | F76: -45.8 | G76: 0.1 | H76: 4.9
A77: Ungarn | B77: Ungheria | C77: 5451 | D77: -56.8 | E77: 26411 | F77: -48.1 | G77: 0.1 | H77: 4.8
A78: Finnland | B78: Finlandia | C78: 2990 | D78: -60.3 | E78: 15358 | F78: -48.7 | G78: 0.1 | H78: 5.1
A79: Portugal | B79: Portogallo | C79: 2575 | D79: -43.4 | E79: 10561 | F79: -39.4 | G79: 0 | H79: 4.1
A80: Irland | B80: Irlanda | C80: 2360 | D80: -53 | E80: 10514 | F80: -45.1 | G80: 0 | H80: 4.5
A81: Griechenland | B81: Grecia | C81: 1633 | D81: -42.8 | E81: 7172 | F81: -26.8 | G81: 0 | H81: 4.4
A82: Türkei | B82: Turchia | C82: 1054 | D82: -49.6 | E82: 4853 | F82: -27.7 | G82: 0 | H82: 4.6
A83: Europa insgesamt | B83: Paesi europei | C83: 5340093 | D83: -28.19914628 | E83: 24018186 | F83: -26.74272456 | G83: 98.4 | H83: 4.49770931
A85: Russland | B85: Russia | C85: 22763 | D85: -35.4 | E85: 137178 | F85: -21.4 | G85: 0.6 | H85: 6
A86: Sonstiges Länder Asiens | B86: Altri Paesi dell'Asia | C86: 15343 | D86: -80.6 | E86: 59730 | F86: -71.7 | G86: 0.2 | H86: 3.9
A87: Vereinigte Staaten | B87: Stati Uniti d'America | C87: 14951 | D87: -79.3 | E87: 57891 | F87: -70.9 | G87: 0.2 | H87: 3.9
A88: Südamerika | B88: Sud America | C88: 7492 | D88: -54 | E88: 31811 | F88: -40.2 | G88: 0.1 | H88: 4.2
A89: Afrika | B89: Africa | C89: 4653 | D89: -39.3 | E89: 28909 | F89: -25.8 | G89: 0.1 | H89: 6.2
A90: Andere Länder | B90: Altri Paesi | C90: 5586 | D90: -69.8 | E90: 28563 | F90: -51.9 | G90: 0.1 | H90: 5.1
A91: Kanada | B91: Canada | C91: 2452 | D91: -77.4 | E91: 13482 | F91: -62.9 | G91: 0.1 | H91: 5.5
A92: Japan | B92: Giappone | C92: 1299 | D92: -84.5 | E92: 4780 | F92: -75.3 | G92: 0 | H92: 3.7
A93: Außereurop. Länder insgesamt | B93: Paesi extraeuropei | C93: 74539 | D93: -69.95134261 | E93: 362344 | F93: -54.23805446 | G93: 1.4 | H93: 4.861133098
A95: INSGESAMT | B95: TOTALE | C95: 5414632 | D95: -29.5 | E95: 24380530 | F95: -27.4 | G95: 100 | H95: 4.5

Sheet tab1 cat
A1: Tab. 1 cat | K1: INDEX / INDICE
A3: Ankünfte und Übernachtungen in den Beherbergungsbetrieben nach Betriebskategorie und -art und Bezirksgemeinschaft - Tourismusjahre 2020/21 und 2019/20
A5: Arrivi e presenze negli esercizi ricettivi per categoria e tipo di esercizio e per comunità comprensoriale - Anni turistici 2020/21 e 2019/20
B8: Tourismusjahr 2020/21 / Anno turistico 2020/21
B9: Ankünfte / Arrivi | D9: Übernachtungen / Presenze
B10: Anzahl | C10: % Veränd. geg. 19/20 | D10: Anzahl | E10: % Veränd. geg. 19/20 | F10: Mittlere Aufenthaltsdauer | G10: Betten | H10: % BruttoAuslastung
A11: Betriebskategorien und -arten | B11: Numero | C11: Variaz. % rispetto 19/20 | D11: Numero | E11: Variaz. % rispetto 19/20 | F11: Perman. media | G11: Posti letto | H11: % utilizzo lordo | I11: Categoria e tipo di esercizio
A13: Gastgewerbliche Betriebe | I13: Esercizi alberghieri
A14: 5 Sterne | B14: 217082 | C14: 3.596 | D14: 961058 | E14: 3.217 | F14: 4.427 | G14: 5315 | H14: 49.54 | I14: 5 Stelle
A15: 4 Sterne | B15: 1134372 | C15: -14.474 | D15: 5055489 | E15: -11.931 | F15: 4.457 | G15: 36590 | H15: 37.854 | I15: 4 Stelle
A16: 3 Sterne | B16: 1557827 | C16: -15.356 | D16: 6299419 | E16: -15.19 | F16: 4.044 | G16: 62169 | H16: 27.761 | I16: 3 Stelle
A17: 2 Sterne | B17: 301352 | C17: -20.907 | D17: 1238678 | E17: -22.026 | F17: 4.11 | G17: 20316 | H17: 16.704 | I17: 2 Stelle
A18: 1 Stern | B18: 51033 | C18: -23.261 | D18: 213427 | E18: -23.517 | F18: 4.182 | G18: 5508 | H18: 10.616 | I18: 1 Stella
A19: Residences | B19: 297430 | C19: -27.359 | D19: 1857531 | E19: -23.71 | F19: 6.245 | G19: 22090 | H19: 23.039 | I19: Residence
A20: Zusammen | B20: 3559096 | C20: -15.926 | D20: 15625602 | E20: -15.086 | F20: 4.39 | G20: 151987 | H20: 28.167 | I20: Totale
A22: Nicht-gastgewerbliche Betriebe | I22: Esercizi extralberghieri
A23: Campingplätze | B23: 363844 | C23: 33.207 | D23: 1457777 | E23: 31.894 | F23: 4.007 | G23: 14682 | H23: 27.204 | I23: Campeggi
A24: Privatquartiere | B24: 282683 | C24: -27.871 | D24: 1653801 | E24: -25.279 | F24: 5.85 | G24: 26239 | H24: 17.268 | I24: Alloggi privati
A25: Urlaub auf dem Bauernhof | B25: 317256 | C25: -15.331 | D25: 2138346 | E25: -8.502 | F25: 6.74 | G25: 26188 | H25: 22.371 | I25: Esercizi agrituristici
A26: Andere Betriebe | B26: 155397 | C26: 9.765 | D26: 340318 | E26: 5.271 | F26: 2.19 | G26: 10066 | H26: 9.263 | I26: Altri esercizi
A27: Zusammen | B27: 1119180 | C27: -5.261 | D27: 5590242 | E27: -6.501 | F27: 4.995 | G27: 77174 | H27: 19.846 | I27: Totale
A29: Insgesamt | B29: 4678276 | C29: -13.599 | D29: 21215844 | E29: -12.98 | F29: 4.535 | G29: 229160 | H29: 25.365 | I29: Totale generale
B32: Tourismusjahr 2019/20 / Anno turistico 2019/20
B33: Ankünfte / Arrivi | D33: Übernachtungen / Presenze
B34: Anzahl | C34: % Veränd. geg. 18/19 | D34: Anzahl | E34: % Veränd. geg. 18/19 | F34: Mittlere Aufenthaltsdauer | G34: Betten | H34: % BruttoAuslastung
A35: Betriebskategorien und -arten | B35: Numero | C35: Variaz. % rispetto 18/19 | D35: Numero | E35: Variaz. % rispetto 18/19 | F35: Perman. media | G35: Posti letto | H35: % utilizzo lordo | I35: Categoria e tipo di esercizio
A37: Gastgewerbliche Betriebe | I37: Esercizi alberghieri
A38: 5 Sterne | B38: 209547 | C38: -0.046 | D38: 931108 | E38: -2.838 | F38: 4.443 | G38: 4538 | H38: 56.066 | I38: 5 Stelle
A39: 4 Sterne | B39: 1326348 | C39: -27.94 | D39: 5740376 | E39: -26.7 | F39: 4.328 | G39: 35993 | H39: 43.575 | I39: 4 Stelle
A40: 3 Sterne | B40: 1840444 | C40: -34.493 | D40: 7427702 | E40: -33.148 | F40: 4.036 | G40: 63115 | H40: 32.154 | I40: 3 Stelle
A41: 2 Sterne | B41: 381009 | C41: -35.385 | D41: 1588573 | E41: -32.143 | F41: 4.169 | G41: 20530 | H41: 21.142 | I41: 2 Stelle
A42: 1 Stern | B42: 66502 | C42: -38.944 | D42: 279050 | E42: -37.082 | F42: 4.196 | G42: 5573 | H42: 13.681 | I42: 1 Stella
A43: Residences | B43: 409454 | C43: -22.182 | D43: 2434815 | E43: -19.593 | F43: 5.946 | G43: 21753 | H43: 30.582 | I43: Residence
A44: Zusammen | B44: 4233304 | C44: -30.426 | D44: 18401624 | E44: -28.435 | F44: 4.347 | G44: 151501 | H44: 33.186 | I44: Totale
A46: Nicht-gastgewerbliche Betriebe | I46: Esercizi extralberghieri
A47: Campingplätze | B47: 273142 | C47: -33.534 | D47: 1105260 | E47: -35.555 | F47: 4.046 | G47: 14436 | H47: 20.919 | I47: Campeggi
A48: Privatquartiere | B48: 391911 | C48: -16.177 | D48: 2213315 | E48: -12.767 | F48: 5.647 | G48: 25466 | H48: 23.747 | I48: Alloggi privati
A49: Urlaub auf dem Bauernhof | B49: 374702 | C49: -23.774 | D49: 2337054 | E49: -21.534 | F49: 6.237 | G49: 25856 | H49: 24.696 | I49: Esercizi agrituristici
A50: Andere Betriebe | B50: 141573 | C50: -38.661 | D50: 323277 | E50: -49.022 | F50: 2.283 | G50: 10101 | H50: 8.744 | I50: Altri esercizi
A51: Zusammen | B51: 1181328 | C51: -26.207 | D51: 5978906 | E51: -23.98 | F51: 5.061 | G51: 75858 | H51: 21.535 | I51: Totale
A53: Insgesamt | B53: 5414632 | C53: -29.547 | D53: 24380530 | E53: -27.391 | F53: 4.503 | G53: 227359 | H53: 29.299 | I53: Totale generale

Sheet tab2
A1: Tab. 2
M2: INDEX / INDICE
A4: Ankünfte und Übernachtungen der inländischen Gäste in den Beherbergungsbetrieben nach Herkunftsgebiet - Tourismusjahre 2020/21 und 2019/20
A6: Arrivi e presenze dall'Italia negli esercizi ricettivi per regione di provenienza - Anni turistici 2020/21 e 2019/20
B8: Tourismusjahr 2020/21 / Anno turistico 2020/21 | H8: Tourismusjahr 2019/20 / Anno turistico 2019/20
B9: Ankünfte / Arrivi | D9: Übernachtungen / Presenze | G9: Mittlere | H9: Ankünfte / Arrivi | J9: Übernachtungen / Presenze | M9: Mittlere
B10: Anzahl | C10: % Veränd. geg. 19/20 | D10: Anzahl | E10: % Veränd. geg. 19/20 | F10: % | G10: Aufenthaltsdauer | H10: Anzahl | I10: % Veränd. geg. 18/19 | J10: Anzahl | K10: % Veränd. geg. 18/19 | L10: % | M10: Aufenthaltsdauer
A11: Herkunftsgebiet | B11: Numero | C11: Variaz. % rispetto 19/20 | D11: Numero | E11: Variaz. % rispetto 19/20 | G11: Permanenza media | H11: Numero | I11: Variaz. % rispetto 18/19 | J11: Numero | K11: Variaz. % rispetto 18/19 | M11: Permanenza media | N11: Regione di provenienza
A13: Piemont | B13: 66575 | C13: -24.7 | D13: 290279 | E13: -20.5 | F13: 3.7 | G13: 4.4 | H13: 88355 | I13: -1.9 | J13: 365063 | K13: 7.3 | L13: 3.6 | M13: 4.1 | N13: Piemonte
A14: Aosta | B14: 2479 | C14: -21.2 | D14: 7921 | E14: -19.7 | F14: 0.1 | G14: 3.2 | H14: 3147 | I14: -22.4 | J14: 9863 | K14: -14.1 | L14: 0.1 | M14: 3.1 | N14: Val d'Aosta
A15: Lombardei | B15: 401814 | C15: -30.9 | D15: 1849546 | E15: -24.2 | F15: 23.3 | G15: 4.6 | H15: 581539 | I15: -1.7 | J15: 2438993 | K15: 4.8 | L15: 24 | M15: 4.2 | N15: Lombardia
A16: Ligurien | B16: 43475 | C16: -23.9 | D16: 253348 | E16: -17.4 | F16: 3.2 | G16: 5.8 | H16: 57142 | I16: -6.4 | J16: 306642 | K16: -3.5 | L16: 3 | M16: 5.4 | N16: Liguria
A17: Nord-Westen | B17: =SUM(B13:B16) -> 514343 | C17: =(B17-H17)/H17*100 -> -29.55971311 | D17: =SUM(D13:D16) -> 2401094 | E17: =(D17-J17)/J17*100 -> -23.05569415 | F17: =SUM(F13:F16) -> 30.3 | G17: =D17/B17 -> 4.668273895 | H17: 730183 | I17: -2.185276277 | J17: 3120561 | K17: 4.116361147 | L17: 30.7 | M17: 4.273669751 | N17: Nord-Ovest
A19: Südtirol | B19: 147968 | C19: 0 | D19: 400364 | E19: -3.1 | F19: 5 | G19: 2.7 | H19: 147981 | I19: -11.1 | J19: 413288 | K19: -6 | L19: 4.1 | M19: 2.8 | N19: Bolzano
A20: Trentino | B20: 44296 | C20: -32.8 | D20: 120009 | E20: -30.1 | F20: 1.5 | G20: 2.7 | H20: 65878 | I20: -7.3 | J20: 171750 | K20: -4.5 | L20: 1.7 | M20: 2.6 | N20: Trentino
A21: Venetien | B21: 326839 | C21: -35.4 | D21: 1258579 | E21: -29.2 | F21: 15.8 | G21: 3.9 | H21: 505840 | I21: -0.4 | J21: 1778582 | K21: 4.3 | L21: 17.5 | M21: 3.5 | N21: Veneto
A22: Friaul-Julisch Venetien | B22: 59777 | C22: -38.6 | D22: 233547 | E22: -35.4 | F22: 2.9 | G22: 3.9 | H22: 97412 | I22: 1.6 | J22: 361778 | K22: 4.7 | L22: 3.6 | M22: 3.7 | N22: Friuli Venezia Giulia
A23: Emilia Romagna | B23: 231762 | C23: -32.2 | D23: 1078268 | E23: -23.3 | F23: 13.6 | G23: 4.7 | H23: 341971 | I23: 0.9 | J23: 1405151 | K23: 5.5 | L23: 13.8 | M23: 4.1 | N23: Emilia Romagna
A24: Nord-Osten | B24: =SUM(B19:B23) -> 810642 | C24: =(B24-H24)/H24*100 -> -30.06172126 | D24: =SUM(D19:D23) -> 3090767 | E24: =(D24-J24)/J24*100 -> -25.17297337 | F24: =SUM(F19:F23) -> 38.8 | G24: =D24/B24 -> 3.812739779 | H24: 1159082 | I24: -1.813484231 | J24: 4130549 | K24: 3.17473679 | L24: 40.7 | M24: 3.563638293 | N24: Nord-Est
A26: Toskana | B26: 119792 | C26: -26.3 | D26: 626608 | E26: -18.3 | F26: 7.9 | G26: 5.2 | H26: 162561 | I26: -4.3 | J26: 767334 | K26: -0.4 | L26: 7.6 | M26: 4.7 | N26: Toscana
A27: Umbrien | B27: 18947 | C27: -28.7 | D27: 97985 | E27: -21.3 | F27: 1.2 | G27: 5.2 | H27: 26580 | I27: -11.2 | J27: 124450 | K27: -9.7 | L27: 1.2 | M27: 4.7 | N27: Umbria
A28: Marken | B28: 42010 | C28: -28.5 | D28: 203472 | E28: -20 | F28: 2.6 | G28: 4.8 | H28: 58795 | I28: -7 | J28: 254412 | K28: -5.7 | L28: 2.5 | M28: 4.3 | N28: Marche
A29: Latium | B29: 144643 | C29: -20.9 | D29: 906886 | E29: -13.8 | F29: 11.4 | G29: 6.3 | H29: 182975 | I29: -10 | J29: 1051922 | K29: -8.9 | L29: 10.4 | M29: 5.7 | N29: Lazio
A30: Mittelitalien | B30: =SUM(B26:B29) -> 325392 | C30: =(B30-H30)/H30*100 -> -24.48742316 | D30: =SUM(D26:D29) -> 1834951 | E30: =(D30-J30)/J30*100 -> -16.52172449 | F30: =SUM(F26:F29) -> 23.1 | G30: =D30/B30 -> 5.639201333 | H30: 430911 | I30: -7.610520425 | J30: 2198118 | K30: -5.742293195 | L30: 21.7 | M30: 5.101095122 | N30: Centro
A32: Abruzzen | B32: 16293 | C32: -16.8 | D32: 74093 | E32: -11.9 | F32: 0.9 | G32: 4.5 | H32: 19592 | I32: -20.3 | J32: 84120 | K32: -18 | L32: 0.8 | M32: 4.3 | N32: Abruzzi
A33: Molise | B33: 2123 | C33: -22.4 | D33: 9758 | E33: -13.7 | F33: 0.1 | G33: 4.6 | H33: 2735 | I33: -31.9 | J33: 11305 | K33: -33.4 | L33: 0.1 | M33: 4.1 | N33: Molise
A34: Kampanien | B34: 30515 | C34: -22.1 | D34: 151194 | E34: -13.9 | F34: 1.9 | G34: 5 | H34: 39147 | I34: -15.2 | J34: 175646 | K34: -15.7 | L34: 1.7 | M34: 4.5 | N34: Campania
A35: Apulien | B35: 35826 | C35: -7.4 | D35: 209336 | E35: 0.5 | F35: 2.6 | G35: 5.8 | H35: 38689 | I35: -17.5 | J35: 208351 | K35: -15.7 | L35: 2.1 | M35: 5.4 | N35: Puglia
A36: Basilicata | B36: 3637 | C36: -18.4 | D36: 16612 | E36: -18.8 | F36: 0.2 | G36: 4.6 | H36: 4455 | I36: -19.3 | J36: 20447 | K36: -19.8 | L36: 0.2 | M36: 4.6 | N36: Basilicata
A37: Kalabrien | B37: 6883 | C37: -32.9 | D37: 32440 | E37: -25 | F37: 0.4 | G37: 4.7 | H37: 10262 | I37: -20.9 | J37: 43272 | K37: -21.2 | L37: 0.4 | M37: 4.2 | N37: Calabria
A38: Süden | B38: =SUM(B32:B37) -> 95277 | C38: =(B38-H38)/H38*100 -> -17.06389276 | D38: =SUM(D32:D37) -> 493433 | E38: =(D38-J38)/J38*100 -> -9.151951335 | F38: =SUM(F32:F37) -> 6.1 | G38: =D38/B38 -> 5.178930907 | H38: 114880 | I38: -0.6357306578 | J38: 543141 | K38: -1.782820976 | L38: 5.3 | M38: 4.727898677 | N38: Sud
A40: Sizilien | B40: 17529 | C40: -21.9 | D40: 90376 | E40: -16.9 | F40: 1.1 | G40: 5.2 | H40: 22449 | I40: -33.2 | J40: 108724 | K40: -28.8 | L40: 1.1 | M40: 4.8 | N40: Sicilia
A41: Sardinien | B41: 8549 | C41: -15.2 | D41: 41428 | E41: -15.6 | F41: 0.5 | G41: 4.8 | H41: 10080 | I41: -28 | J41: 49110 | K41: -28.8 | L41: 0.5 | M41: 4.9 | N41: Sardegna
A42: Inseln | B42: =SUM(B40:B41) -> 26078 | C42: =(B42-H42)/H42*100 -> -19.83153494 | D42: =SUM(D40:D41) -> 131804 | E42: =(D42-J42)/J42*100 -> -16.49201059 | F42: =SUM(F40:F41) -> 1.6 | G42: =D42/B42 -> 5.05422195 | H42: 32529 | I42: -31.65314956 | J42: 157834 | K42: -28.81157172 | L42: 1.6 | M42: 4.852101202 | N42: Isole
A44: Insgesamt | B44: 1771732 | C44: -28.2 | D44: 7952049 | E44: -21.7 | F44: 100 | G44: 4.5 | H44: 2467585 | I44: -4.4 | J44: 10150203 | K44: -0.6 | L44: 100 | M44: 4.1 | N44: TOTALE

Sheet tab4
A1: Tab. 4 | F1: INDEX / INDICE
A3: Beherbergungsbetriebe nach Betriebskategorie und -art - Tourismusjahr 2020/21
A5: Esercizi ricettivi per categoria e tipo d'esercizio - Anno turistico 2020/21
A7: KATEGORIEN | B7: Betriebe | C7: Zimmer | D7: Betten | E7: Bäder | F7: CATEGORIA
B8: Esercizi | C8: Camere | D8: Letti | E8: Bagni
A10: Nach Betriebsart / Per tipo d’esercizio
A11: KATEGORIEN | B11: Betriebe | C11: Zimmer | D11: Betten | E11: Bäder | F11: CATEGORIA
B12: Esercizi | C12: Camere | D12: Letti | E12: Bagni
A14: Nach Betriebsart / Per tipo d’esercizio
A15: Gasthof « | B15: 88 | C15: 894 | D15: 1850 | E15: 1037 | F15: Albergo «
A16: Gasthof «« | B16: 223 | C16: 3094 | D16: 6044 | E16: 3090 | F16: Albergo ««
A17: Gasthof ««« | B17: 166 | C17: 2984 | D17: 5932 | E17: 2976 | F17: Albergo «««
A18: Gasthof «««« | B18: 23 | C18: 673 | D18: 1351 | E18: 674 | F18: Albergo ««««
A19: Gasthof ««««« | B19: 2 | C19: 119 | D19: 250 | E19: 119 | F19: Albergo «««««
A20: Zusammen | B20: 500 | C20: 7763 | D20: 15426 | E20: 7895 | F20: Totale
A22: Hotel «« | B22: 38 | C22: 834 | D22: 1754 | E22: 835 | F22: Hotel ««
A23: Hotel ««« | B23: 989 | C23: 23570 | D23: 46742 | E23: 24695 | F23: Hotel «««
A24: Hotel «««« | B24: 482 | C24: 17643 | D24: 34670 | E24: 17664 | F24: Hotel ««««
A25: Hotel ««««« | B25: 45 | C25: 2439 | D25: 4945 | E25: 5207 | F25: Hotel «««««
A26: Zusammen | B26: 1553 | C26: 44485 | D26: 88110 | E26: 48400 | F26: Totale
A28: Garni « | B28: 70 | C28: 668 | D28: 1287 | E28: 618 | F28: Garni «
A29: Garni «« | B29: 319 | C29: 3428 | D29: 6798 | E29: 3396 | F29: Garni ««
A30: Garni ««« | B30: 221 | C30: 2829 | D30: 5650 | E30: 2837 | F30: Garni «««
A31: Garni «««« | B31: 13 | C31: 214 | D31: 436 | E31: 214 | F31: Garni ««««
A32: Zusammen | B32: =SUM(B28:B31) -> 623 | C32: =SUM(C28:C31) -> 7139 | D32: =SUM(D28:D31) -> 14171 | E32: =SUM(E28:E31) -> 7065 | F32: Totale
A34: Pension « | B34: 72 | C34: 1038 | D34: 2372 | E34: 1023 | F34: Pensione «
A35: Pension «« | B35: 205 | C35: 2717 | D35: 5721 | E35: 2719 | F35: Pensione ««
A36: Pension ««« | B36: 133 | C36: 1939 | D36: 3772 | E36: 1943 | F36: Pensione «««
A37: Pension «««« | B37: 2 | C37: 39 | D37: 74 | E37: 39 | F37: Pensione ««««
A38: Zusammen | B38: 412 | C38: 5732 | D38: 11938 | E38: 5724 | F38: Totale
A40: Residence «« | B40: 332 | C40: 2778 | D40: 7275 | E40: 2832 | F40: Residence ««
A41: Residence ««« | B41: 438 | C41: 4506 | D41: 11475 | E41: 4683 | F41: Residence «««
A42: Residence «««« | B42: 82 | C42: 1263 | D42: 3255 | E42: 1355 | F42: Residence ««««
A43: Residence ««««« | B43: 1 | C43: 35 | D43: 85 | E43: 34 | F43: Residence «««««
A44: Zusammen | B44: 853 | C44: 8582 | D44: 22090 | E44: 8904 | F44: Totale
A46: Hoteldorf «««« | B46: 1 | C46: 30 | D46: 59 | E46: 30 | F46: Villagio Hotel ««««
A47: Hoteldorf ««««« | B47: 1 | C47: 51 | D47: 120 | E47: 51 | F47: Villagio Hotel «««««
A48: Motel ««« | B48: 2 | C48: 37 | D48: 74 | E48: 37 | F48: Motel «««
A50: Gastgewerbliche Betriebe | B50: 3943 | C50: 73817 | D50: 151987 | E50: 78104 | F50: Esercizi alberghieri
A52: Ferienwohnung ï | B52: 130 | C52: 205 | D52: 685 | E52: 232 | F52: Appartamento ï
A53: Ferienwohnung ïï | B53: 801 | C53: 1600 | D53: 5206 | E53: 1844 | F53: Appartamento ïï
A54: Ferienwohnung ïïï | B54: 1168 | C54: 2893 | D54: 9388 | E54: 3568 | F54: Appartamento ïïï
A55: Ferienwohnung ïïïï | B55: 208 | C55: 579 | D55: 1870 | E55: 768 | F55: Appartamento ïïïï
A56: Ferienwohnung ïïïïï | B56: 47 | C56: 126 | D56: 410 | E56: 173 | F56: Appartamento ïïïïï
A57: Zusammen | B57: 2352 | C57: 5403 | D57: 17558 | E57: 6584 | F57: Totale
A59: Zimmervermietung ï | B59: 84 | C59: 291 | D59: 596 | E59: 307 | F59: Affittacamere ï
A60: Zimmervermietung ïï | B60: 230 | C60: 826 | D60: 1799 | E60: 900 | F60: Affittacamere ïï
A61: Zimmervermietung ïïï | B61: 214 | C61: 889 | D61: 1954 | E61: 933 | F61: Affittacamere ïïï
A62: Zimmervermietung ïïïï | B62: 32 | C62: 129 | D62: 322 | E62: 145 | F62: Affittacamere ïïïï
A63: Zimmervermietung ïïïïï | B63: 9 | C63: 41 | D63: 103 | E63: 47 | F63: Affittacamere ïïïïï
A64: Zusammen | B64: 568 | C64: 2175 | D64: 4774 | E64: 2331 | F64: Totale
A66: Nicht klass. Privatquatier | B66: 78 | C66: 180 | D66: 503 | E66: 188 | F66: Alloggio privato non class.
A67: Privatquartier ohne Liz. | B67: 20 | C67: 39 | D67: 84 | E67: 41 | F67: Alloggio privato senza licenza
A68: Sonstiges | B68: 227 | C68: 709 | D68: 1821 | E68: 866 | F68: Altro
A69: Zusammen | B69: =SUM(B66:B68) -> 325 | C69: =SUM(C66:C68) -> 928 | D69: =SUM(D66:D68) -> 2408 | E69: =SUM(E66:E68) -> 1095 | F69: Totale
A71: Urlaub auf dem Bauernhof | B71: 22 | C71: 51 | D71: 140 | E71: 53 | F71: Esercizio agrituristico
A72: Urlaub auf dem Bauernhof { | B72: 327 | C72: 974 | D72: 2533 | E72: 1103 | F72: Esercizio agrituristico {
A73: Urlaub auf dem Bauernhof {{ | B73: 1046 | C73: 3016 | D73: 8552 | E73: 3216 | F73: Esercizio agrituristico {{
A74: Urlaub auf dem Bauernhof {{{ | B74: 1162 | C74: 3802 | D74: 10910 | E74: 4194 | F74: Esercizio agrituristico {{{
A75: Urlaub auf dem Bauernhof {{{{ | B75: 329 | C75: 1235 | D75: 3661 | E75: 1356 | F75: Esercizio agrituristico {{{{
A76: Urlaub auf dem Bauernhof {{{{{ | B76: 36 | C76: 142 | D76: 447 | E76: 162 | F76: Esercizio agrituristico {{{{{
A77: Zusammen | B77: 2920 | C77: 9219 | D77: 26243 | E77: 10083 | F77: Totale
A79: Zimmer- und Wohnungsvermietung ï | B79: 37 | C79: 106 | D79: 275 | E79: 109 | F79: Affittacamere e appartamenti ï
A80: Zimmer- und Wohnungsvermietung ïï | B80: 119 | C80: 385 | D80: 998 | E80: 411 | F80: Affittacamere e appartamenti ïï
A81: Zimmer- und Wohnungsvermietung ïïï | B81: 172 | C81: 643 | D81: 1620 | E81: 701 | F81: Affittacamere e appartamenti ïïï
A82: Zimmer- und Wohnungsvermietung ïïïï | B82: 34 | C82: 151 | D82: 350 | E82: 161 | F82: Affittacamere e appartamenti ïïïï
A83: Zimmer- und Wohnungsvermietung ïïïïï | B83: 8 | C83: 35 | D83: 78 | E83: 36 | F83: Affittacamere e appartamenti ïïïïï
A84: Zusammen | B84: 369 | C84: 1318 | D84: 3320 | E84: 1417 | F84: Totale
A86: Berggasthaus | B86: 26 | C86: 200 | D86: 466 | E86: 220 | F86: Rifugio albergo
A87: Campingplatz (a) | B87: 55 | C87: 4667 | D87: 14682 | E87: 67 | F87: Campeggio (a)
A88: Ferienheim | B88: 34 | C88: 1080 | D88: 2471 | E88: 1097 | F88: Casa per ferie
A89: Jugendferienheim | B89: 12 | C89: 227 | D89: 603 | E89: 269 | F89: Albergo per gioventù
A90: Jugendherberge | B90: 6 | C90: 171 | D90: 434 | E90: 197 | F90: Ostello
A91: Schutzhütte | B91: 92 | C91: 840 | D91: 4217 | E91: 144 | F91: Rifugio alpino
A92: Zusammen | B92: =SUM(B86:B91) -> 225 | C92: =SUM(C86:C91) -> 7185 | D92: =SUM(D86:D91) -> 22873 | E92: =SUM(E86:E91) -> 1994 | F92: Totale
A94: Nicht-gastgewerbliche Betriebe | B94: 6758 | C94: 26225 | D94: 77174 | E94: 23503 | F94: Esercizi extralberghieri
A96: Nach Betriebskategorie / Per categoria d'esercizio
A98: « | B98: 230 | C98: 2599 | D98: 5508 | E98: 2677 | F98: «
A99: «« | B99: 784 | C99: 10071 | D99: 20316 | E99: 10039 | F99: ««
A100: ««« | B100: 1510 | C100: 31358 | D100: 62168 | E100: 32488 | F100: «««
A101: «««« | B101: 519 | C101: 18599 | D101: 36590 | E101: 18620 | F101: ««««
A102: ««««« | B102: 48 | C102: 2609 | D102: 5315 | E102: 5377 | F102: «««««
A103: Residences | B103: 853 | C103: 8582 | D103: 22090 | E103: 8904 | F103: Residence
A104: Gastgewerbliche Betriebe | B104: 3943 | C104: 73817 | D104: 151987 | E104: 78104 | F104: Esercizi alberghieri
A106: Nicht-gastgewerbliche Betriebe | B106: 6758 | C106: 26225 | D106: 77174 | E106: 23503 | F106: Esercizi extralberghieri
A108: Insgesamt | B108: 10701 | C108: 100042 | D108: 229160 | E108: 101607 | F108: Totale generale
A110: (a) Bei den Campingplätzen gilt die Zahl der Abstellplätze als Zimmeranzahl, die Beherbergungskapazität als Bettenanzahl, während die Anzahl der Bäder nicht verfügbar ist.
A111: Per i campeggi le camere corrispondono alle piazzuole ed i posti letto alla relativa capacità di ospitare persone, mentre il numero di bagni non è disponibile.

Sheet tab5
A1: Tab. 5 | G1: INDEX / INDICE
A3: Index der Bettenauslastung in den Beherbergungsbetrieben nach Betriebskategorie und -art - Tourismusjahr 2020/21
A5: Indice di utilizzazione dei posti letto negli esercizi ricettivi per categoria e tipo d'esercizio - Anno turistico 2020/21
D7: Index der Bettenauslastung (%) Indice di utilizzazione dei posti letto (%)
B9: Übernachtungen | C9: Betten
A10: BETRIEBSKATEGORIEN | D10: 2020/21 | E10: 2019/20 | F10: CATEGORIA E TIPO
A11: UND -ARTEN | B11: Presenze | C11: Posti letto | D11: Brutto | E11: Brutto | F11: D’ESERCIZIO
D12: Lordo | E12: Lordo
A14: Gastgewerbliche
A15: Beherbergungsbetriebe | F15: Esercizi alberghieri
A16: 5 Sterne | B16: 961058 | C16: 5315 | D16: 49.54 | E16: 56.066 | F16: 5 Stelle
A17: 4Sterne | B17: 5055489 | C17: 36590 | D17: 37.854 | E17: 43.575 | F17: 4 Stelle
A18: 3 Sterne | B18: 6299419 | C18: 62169 | D18: 27.761 | E18: 32.154 | F18: 3 Stelle
A19: 2 Sterne | B19: 1238678 | C19: 20316 | D19: 16.704 | E19: 21.142 | F19: 2 Stelle
A20: 1 Stern | B20: 213427 | C20: 5508 | D20: 10.616 | E20: 13.681 | F20: 1 Stella
A21: Residences | B21: 1857531 | C21: 22090 | D21: 23.039 | E21: 30.582 | F21: Residence
A22: Zusammen | B22: 15625602 | C22: 151987 | D22: 28.167 | E22: 33.186 | F22: Totale
A24: Nicht-gastgewerbliche | F24: Esercizi
A25: Beherbergungsbetriebe | F25: extralberghieri
A26: Campingplätze | B26: 1457777 | C26: 14682 | D26: 27.204 | E26: 20.919 | F26: Campeggi
A27: Privatquartiere | B27: 1653801 | C27: 26239 | D27: 17.268 | E27: 23.747 | F27: Alloggi privati
A28: Urlaub auf dem Bauernhof | B28: 2138346 | C28: 26188 | D28: 22.371 | E28: 24.696 | F28: Esercizi agrituristici
A29: Andere Betriebe | B29: 340318 | C29: 10066 | D29: 9.263 | E29: 8.744 | F29: Altri esercizi
A30: Zusammen | B30: 5590242 | C30: 77174 | D30: 19.846 | E30: 21.535 | F30: Totale
A32: Insgesamt | B32: 21215844 | C32: 229160 | D32: 25.365 | E32: 29.299 | F32: Totale generale

Sheet tab6
A1: Tab. 6 | E1: INDEX / INDICE
A3: Index der Brutto-Auslastung der Betten in den gastgewerblichen Beherbergungsbetrieben - Tourismusjahre 1991/92-2020/21
A5: Indice di utilizzazione lordo dei posti letto negli esercizi alberghieri - Anni turistici 1991/92-2020/21
A7: TOURISMUSJAHRE | B7: Übernachtungen | C7: Betten | D7: Auslastung der Betten in Tagen | E7: Auslastung der Betten in %
A8: ANNI TURISTICI | B8: Presenze | C8: Posti letto | D8: Utilizzo dei posti letto in giorni | E8: Utilizzo dei posti letto in %
A9: 1991/92 | B9: 18490387 | C9: 150508 | D9: 122.8531839 | E9: 33.56644368
A10: 1992/93 | B10: 18474691 | C10: 149304.5 | D10: 123.7383401 | E10: 33.9009151
A11: 1993/94 | B11: 19633514 | C11: 147159 | D11: 133.4170115 | E11: 36.5526059
A12: 1994/95 | B12: 20333780 | C12: 146569.5 | D12: 138.7313186 | E12: 38.00858044
A13: 1995/96 | B13: 19871504 | C13: 145871 | D13: 136.2265563 | E13: 37.22037058
A15: 1996/97 | B15: 18329625 | C15: 145998.5 | D15: 125.5466666 | E15: 34.39634701
A16: 1997/98 | B16: 18364012 | C16: 145257.5 | D16: 126.4238473 | E16: 34.63667049
A17: 1998/99 | B17: 18555377 | C17: 145183 | D17: 127.8068162 | E17: 35.01556609
A18: 1999/2000 | B18: 18798721 | C18: 146102 | D18: 128.6684713 | E18: 35.15532004
A19: 2000/01 | B19: 19718823 | C19: 146218.5 | D19: 134.8586054 | E19: 36.94756314
A21: 2001/02 | B21: 20330468 | C21: 146573.5 | D21: 138.7049364 | E21: 38.00135245
A22: 2002/03 | B22: 20616242 | C22: 146557 | D22: 140.6704695 | E22: 38.53985466
A23: 2003/04 | B23: 20818725 | C23: 147548 | D23: 141.0979817 | E23: 38.55136111
A24: 2004/05 | B24: 20971828 | C24: 148043 | D24: 141.6603825 | E24: 38.81106369
A25: 2005/06 | B25: 21213360 | C25: 148913 | D25: 142.4547219 | E25: 39.02869093
A27: 2006/07 | B27: 21842706 | C27: 149475 | D27: 146.1294932 | E27: 40.0354776
A28: 2007/08 | B28: 22260067 | C28: 150470 | D28: 147.936911 | E28: 40.41992104
A29: 2008/09 | B29: 22493117 | C29: 151672 | D29: 148.280566 | E29: 40.63042492
A30: 2009/10 | B30: 23003324 | C30: 150947 | D30: 152.3933831 | E30: 41.75161181
A31: 2010/11 | B31: 23210300 | C31: 150932 | D31: 153.7798479 | E31: 42.13146517
A33: 2011/12 | B33: 23212248 | C33: 151628 | D33: 153.0868177 | E33: 41.82699938
A34: 2012/13 | B34: 22895718 | C34: 151507 | D34: 151.1 | E34: 41.403
A35: 2013/14 | B35: 22424409 | C35: 150562 | D35: 148.4 | E35: 40.7
A36: 2014/15 | B36: 22987760 | C36: 149131 | D36: =B36/C36 -> 154.1447452 | E36: 42.069
A37: 2015/16 | B37: 24606879 | C37: 149910 | D37: =B37/C37 -> 164.1443466 | E37: 44.677
A39: 2016/17 | B39: 25040099 | C39: 151099 | D39: =B39/C39 -> 165.7198195 | E39: 45.23
A40: 2017/18 | B40: 25623220 | C40: 151765 | D40: =B40/C40 -> 168.8348433 | E40: 46.081
A41: 2018/19 | B41: 25713001 | C41: 149779 | D41: =B41/C41 -> 171.6729381 | E41: 47.034
A42: 2019/20 | B42: 18401624 | C42: 151501 | D42: =B42/C42 -> 121.462063 | E42: 33.186
A44: 2020/21 | B44: 15625602 | C44: 151987 | D44: =B44/C44 -> 102.808806 | E44: 28.167

Sheet tab 7
A1: Tab. 7
S2: INDEX / INDICE
A3: Übernachtungen der Gäste in den Beherbergungsbetrieben nach Bezirksgemeinschaft - Tourismusjahre 1991/92-2020/21
A5: Presenze dei clienti negli esercizi ricettivi per comunità comprensoriale - Anni turistici 1991/92-2020/21
B8: Tourismusjahre / Anni turistici
A9: BEZIRKSGEMEINSCHAFTEN | C9: Λ | E9: Λ | G9: Λ | I9: Λ | W9: COMUNITÀ COMPRENSORIALE
B10: 1991/1992 | C10: Λ | D10: 1996/1997 | E10: Λ | F10: 2001/2002 | G10: Λ | H10: 2006/2007 | I10: Λ | J10: 2008/2009 | K10: 2009/2010 | L10: 2010/2011 | M10: 2011/2012 | N10: 2012/2013 | O10: 2013/2014 | P10: 2014/2015 | Q10: 2015/2016 | R10: 2016/2017 | S10: 2017/2018 | T10: 2018/2019 | U10: 2019/2020 | V10: 2020/2021
B12: Absolute Werte in Tausend / Valori assoluti in migliaia
A13: Vinschgau | B13: 1816 | D13: 1750 | F13: 1936 | H13: 2033 | J13: 2105 | K13: 2095 | L13: 2159 | M13: 2194 | N13: 2145 | O13: 2100 | P13: 2166 | Q13: 2312 | R13: 2373 | S13: 2402 | T13: 2491 | U13: 1791 | V13: 1548 | W13: Val Venosta
A14: Burggrafenamt | B14: 5470 | D14: 5162 | F14: 5533 | H14: 5857 | J14: 6108 | K14: 6376 | L14: 6562 | M14: 6583 | N14: 6546 | O14: 6272 | P14: 6458 | Q14: 7013 | R14: 7174 | S14: 7231 | T14: 7259 | U14: 4337 | V14: 5496 | W14: Burgraviato
A15: Überetsch-Südt. Unterland | B15: 1884 | D15: 1895 | F15: 2047 | H15: 1924 | J15: 1944 | K15: 1992 | L15: 2034 | M15: 2099 | N15: 2027 | O15: 1964 | P15: 1972 | Q15: 2144 | R15: 2266 | S15: 2299 | T15: 2313 | U15: 1367 | V15: 1795 | W15: Oltradige-Bassa Atesina
A16: Bozen | B16: 579 | D16: 534 | F16: 510 | H16: 584 | J16: 513 | K16: 561 | L16: 593 | M16: 574 | N16: 554 | O16: 565 | P16: 584 | Q16: 634 | R16: 663 | S16: 684 | T16: 718 | U16: 446 | V16: 456 | W16: Bolzano
A17: Salten-Schlern | B17: 4041 | D17: 4016 | F17: 4327 | H17: 4719 | J17: 4933 | K17: 5077 | L17: 5119 | M17: 5197 | N17: 5141 | O17: 5149 | P17: 5260 | Q17: 5613 | R17: 5647 | S17: 5902 | T17: 5912 | U17: 4653 | V17: 3348 | W17: Salto-Sciliar
A18: Eisacktal | B18: 2014 | D18: 2046 | F18: 2370 | H18: 2414 | J18: 2459 | K18: 2508 | L18: 2522 | M18: 2600 | N18: 2594 | O18: 2579 | P18: 2609 | Q18: 2828 | R18: 2929 | S18: 3024 | T18: 3061 | U18: 2195 | V18: 1996 | W18: Valle Isarco
A19: Wipptal | B19: 805 | D19: 868 | F19: 974 | H19: 1154 | J19: 1229 | K19: 1206 | L19: 1207 | M19: 1210 | N19: 1239 | O19: 1220 | P19: 1253 | Q19: 1329 | R19: 1362 | S19: 1460 | T19: 1449 | U19: 1063 | V19: 800 | W19: Alta Valle Isarco
A20: Pustertal | B20: 7033 | D20: 7041 | F20: 7579 | H20: 8462 | J20: 8726 | K20: 8870 | L20: 8819 | M20: 8824 | N20: 8747 | O20: 8632 | P20: 8986 | Q20: 9544 | R20: 9799 | S20: 10236 | T20: 10373 | U20: 8528 | V20: 5777 | W20: Val Pusteria
A22: Südtirol insgesamt | B22: 23641 | D22: 23313 | F22: 25276 | H22: 27146 | J22: 28017 | K22: 28684 | L22: 29016 | M22: 29281 | N22: 28993 | O22: 28482 | P22: 29287 | Q22: 31418 | R22: 32212 | S22: 33237 | T22: 33578 | U22: 24381 | V22: 21216 | W22: Totale provincia
B24: Prozentuelle Verteilung / Composizione percentuale
A25: Vinschgau | B25: 7.683 | D25: 7.507 | F25: 7.661 | H25: 7.491 | J25: 7.515 | K25: 7.305 | L25: 7.441 | M25: 7.494 | N25: 7.399 | O25: =O13*100/$O$22 -> 7.373077733 | P25: 7.395 | Q25: 7.36 | R25: 7.367 | S25: 7.226 | T25: 7.419 | U25: 7.346 | V25: 7.298 | W25: Val Venosta
A26: Burggrafenamt | B26: 23.137 | D26: 22.144 | F26: 21.89 | H26: 21.574 | J26: 21.803 | K26: 22.227 | L26: 22.615 | M26: 22.481 | N26: 22.579 | O26: =O14*100/$O$22 -> 22.0209255 | P26: 22.05 | Q26: 22.321 | R26: 22.272 | S26: 21.756 | T26: 21.619 | U26: 17.789 | V26: 25.905 | W26: Burgraviato
A27: Überetsch-Südtiroler Unterland | B27: 7.968 | D27: 8.128 | F27: 8.099 | H27: 7.087 | J27: 6.937 | K27: 6.945 | L27: 7.01 | M27: 7.168 | N27: 6.99 | O27: 6.895583175 | P27: 6.734 | Q27: 6.823 | R27: 7.034 | S27: 6.916 | T27: 6.888 | U27: 5.607 | V27: 8.459 | W27: Oltradige-Bassa Atesina
A28: Bozen | B28: 2.448 | D28: 2.292 | F28: 2.017 | H28: 2.153 | J28: 1.832 | K28: 1.955 | L28: 2.045 | M28: 1.962 | N28: 1.91 | O28: 1.983709009 | P28: 1.993 | Q28: 2.018 | R28: 2.057 | S28: 2.058 | T28: 2.139 | U28: 1.831 | V28: 2.148 | W28: Bolzano
A29: Salten-Schlern | B29: 17.093 | D29: 17.228 | F29: 17.12 | H29: 17.382 | J29: 17.605 | K29: 17.698 | L29: 17.643 | M29: 17.747 | N29: 17.732 | O29: 18.0780844 | P29: 17.959 | Q29: 17.866 | R29: 17.532 | S29: 17.757 | T29: 17.608 | U29: 19.083 | V29: 15.782 | W29: Salto-Sciliar
A30: Eisacktal | B30: 8.517 | D30: 8.775 | F30: 9.375 | H30: 8.891 | J30: 8.775 | K30: 8.742 | L30: 8.693 | M30: 8.88 | N30: 8.948 | O30: 9.054841654 | P30: 8.908 | Q30: 9.002 | R30: 9.091 | S30: 9.097 | T30: 9.117 | U30: 9.003 | V30: 9.409 | W30: Valle Isarco
A31: Wipptal | B31: 3.404 | D31: 3.723 | F31: 3.852 | H31: 4.251 | J31: 4.386 | K31: 4.203 | L31: 4.158 | M31: 4.132 | N31: 4.274 | O31: 4.283407064 | P31: 4.279 | Q31: 4.229 | R31: 4.227 | S31: 4.393 | T31: 4.316 | U31: 4.361 | V31: 3.769 | W31: Alta Valle Isarco
A32: Pustertal | B32: 29.75 | D32: 30.203 | F32: 29.985 | H32: 31.171 | J32: 31.146 | K32: 30.925 | L32: 30.394 | M32: 30.135 | N32: 30.168 | O32: 30.30686047 | P32: 30.681 | Q32: 30.379 | R32: 30.419 | S32: 30.797 | T32: 30.893 | U32: 34.979 | V32: 27.229 | W32: Val Pusteria
A34: Südtirol insgesamt | B34: 100 | D34: 100 | F34: 100 | H34: 100 | J34: 100 | K34: 100 | L34: 100 | M34: 100 | N34: 100 | O34: =SUM(O25:O32) -> 99.99648901 | P34: 100 | Q34: 100 | R34: 100 | S34: 100 | T34: 100 | U34: 100 | V34: 100 | W34: Totale provincia

Sheet tab 8
A1: Tab. 8 | Q1: INDEX / INDICE
A3: Übernachtungen der inländischen und ausländischen Gäste in den Beherbergungsbetrieben nach Bezirksgemeinschaft - Tourismusjahre 1991/92-2020/21
A4: Prozentuelle Verteilung
A5: Presenze dall'Italia e dall'estero negli esercizi ricettivi per comunità comprensoriale - Anni turistici 1991/92-2020/21
A6: Composizione percentuale
B8: Tourismusjahre / Anni turistici
A9: BEZIRKSGEMEINSCHAFTEN | C9: Λ | E9: Λ | G9: Λ | I9: Λ | W9: COMUNITÀ COMPRENSORIALE
B10: 1991/1992 | C10: Λ | D10: 1996/1997 | E10: Λ | F10: 2001/2002 | G10: Λ | H10: 2006/2007 | I10: Λ | J10: 2008/2009 | K10: 2009/2010 | L10: 2010/2011 | M10: 2011/2012 | N10: 2012/2013 | O10: 2013/2014 | P10: 2014/2015 | Q10: 2015/2016 | R10: 2016/2017 | S10: 2017/2018 | T10: 2018/2019 | U10: 2019/2020 | V10: 2020/2021
B12: Inland / Italia
A13: Vinschgau | B13: 7.424 | D13: 5.984 | F13: 6.127 | H13: 5.311 | J13: 5.275 | K13: 5.229 | L13: 5.196 | M13: 5.145 | N13: 5.15 | O13: 4.84 | P13: 4.843 | Q13: 4.779 | R13: 4.526 | S13: 4.521 | T13: 4.836 | U13: 5.19 | V13: 5.85 | W13: Val Venosta
A14: Burggrafenamt | B14: 7.144 | D14: 6.446 | F14: 6.994 | H14: 8.034 | J14: 8.429 | K14: 8.793 | L14: 8.41 | M14: 7.893 | N14: 7.562 | O14: 7.569 | P14: 7.716 | Q14: 7.686 | R14: 7.785 | S14: 7.883 | T14: 7.926 | U14: 8.523 | V14: 7.44 | W14: Burgraviato
A15: Überetsch-Südt. Unterland | B15: 3.646 | D15: 4.499 | F15: 4.392 | H15: 3.336 | J15: 3.184 | K15: 2.973 | L15: 3.024 | M15: 3.473 | N15: 3.123 | O15: 2.929 | P15: 3.009 | Q15: 3.099 | R15: 3.292 | S15: 3.299 | T15: 3.273 | U15: 3.051 | V15: 3.144 | W15: Oltradige-Bassa Atesina
A16: Bozen | B16: 3.431 | D16: 3.735 | F16: 2.663 | H16: 2.702 | J16: 2.167 | K16: 2.276 | L16: 2.423 | M16: 2.369 | N16: 2.125 | O16: 2.308 | P16: 2.217 | Q16: 2.32 | R16: 2.31 | S16: 2.423 | T16: 2.711 | U16: 2.428 | V16: 2.434 | W16: Bolzano
A17: Salten-Schlern | B17: 23.495 | D17: 20.992 | F17: 21.246 | H17: 21.524 | J17: 21.465 | K17: 21.419 | L17: 21.51 | M17: 21.261 | N17: 21.006 | O17: 21.011 | P17: 20.823 | Q17: 20.958 | R17: 20.488 | S17: 20.562 | T17: 20.314 | U17: 20.781 | V17: 21.083 | W17: Salto-Sciliar
A18: Eisacktal | B18: 7.319 | D18: 7.332 | F18: 7.874 | H18: 7.721 | J18: 7.948 | K18: 7.899 | L18: 7.777 | M18: 7.896 | N18: 7.833 | O18: 7.566 | P18: 7.574 | Q18: 7.597 | R18: 7.698 | S18: 7.615 | T18: 7.586 | U18: 7.805 | V18: 8.073 | W18: Valle Isarco
A19: Wipptal | B19: 3.893 | D19: 4.4 | F19: 3.959 | H19: 4.894 | J19: 5.036 | K19: 4.852 | L19: 4.854 | M19: 4.851 | N19: 5.073 | O19: 5.234 | P19: 5.239 | Q19: 5.091 | R19: 5.302 | S19: 5.468 | T19: 5.233 | U19: 4.641 | V19: 4.511 | W19: Alta Valle Isarco
A20: Pustertal | B20: 43.648 | D20: 46.611 | F20: 46.744 | H20: 46.476 | J20: 46.496 | K20: 46.56 | L20: 46.805 | M20: 47.111 | N20: 48.13 | O20: 48.543 | P20: 48.579 | Q20: 48.47 | R20: 48.6 | S20: 48.229 | T20: 48.12 | U20: 47.581 | V20: 47.465 | W20: Val Pusteria
A22: Südtirol insgesamt | B22: 100 | D22: 100 | F22: 100 | H22: 100 | J22: 100 | K22: 100 | L22: 100 | M22: 100 | N22: 100 | O22: 100 | P22: 100 | Q22: 100 | R22: 100 | S22: 100 | T22: 100 | U22: 100 | V22: 100 | W22: Totale provincia
B24: Ausland / Estero
A25: Vinschgau | B25: 7.85 | D25: 8.268 | F25: 8.447 | H25: 8.771 | J25: 8.819 | K25: 8.517 | L25: 8.673 | M25: 8.671 | N25: 8.47 | O25: 8.503 | P25: 8.581 | Q25: 8.541 | R25: 8.678 | S25: 8.46 | T25: 8.548 | U25: 8.885 | V25: 8.166 | W25: Val Venosta
A26: Burggrafenamt | B26: 33.427 | D26: 29.981 | F26: 29.514 | H26: 29.53 | J26: 29.589 | K26: 30.064 | L26: 30.412 | M26: 29.792 | N26: 29.732 | O26: 28.476 | P26: 28.709 | Q26: 29.013 | R26: 28.959 | S26: 28.084 | T26: 27.601 | U26: 24.398 | V26: 36.976 | W26: Burgraviato
A27: Überetsch-Südtiroler Unterland | B27: 10.748 | D27: 9.939 | F27: 9.997 | H27: 9.292 | J27: 9.123 | K27: 9.263 | L27: 9.197 | M27: 9.019 | N27: 8.832 | O27: 8.669 | P27: 8.465 | Q27: 8.526 | R27: 8.762 | S27: 8.566 | T27: 8.468 | U27: 7.431 | V27: 11.645 | W27: Oltradige-Bassa Atesina
A28: Bozen | B28: 1.816 | D28: 1.572 | F28: 1.687 | H28: 1.83 | J28: 1.637 | K28: 1.768 | L28: 1.837 | M28: 1.757 | N28: 1.807 | O28: 1.839 | P28: 1.889 | Q28: 1.88 | R28: 1.94 | S28: 1.891 | T28: 1.89 | U28: 1.405 | V28: 1.977 | W28: Bolzano
A29: Salten-Schlern | B29: 12.974 | D29: 15.349 | F29: 15.008 | H29: 14.948 | J29: 15.358 | K29: 15.527 | L29: 15.521 | M29: 15.987 | N29: 16.173 | O29: 16.768 | P29: 16.629 | Q29: 16.453 | R29: 16.167 | S29: 16.478 | T29: 16.425 | U29: 17.872 | V29: 12.604 | W29: Salto-Sciliar
A30: Eisacktal | B30: 9.288 | D30: 9.495 | F30: 10.144 | H30: 9.578 | J30: 9.257 | K30: 9.235 | L30: 9.195 | M30: 9.373 | N30: 9.48 | O30: 9.722 | P30: 9.528 | Q30: 9.644 | R30: 9.735 | S30: 9.773 | T30: 9.786 | U30: 9.858 | V30: 10.21 | W30: Valle Isarco
A31: Wipptal | B31: 3.09 | D31: 3.384 | F31: 3.797 | H31: 3.872 | J31: 4.008 | K31: 3.824 | L31: 3.776 | M31: 3.773 | N31: 3.894 | O31: 3.861 | P31: 3.833 | Q31: 3.836 | R31: 3.731 | S31: 3.902 | T31: 3.915 | U31: 4.161 | V31: 3.324 | W31: Alta Valle Isarco
A32: Pustertal | B32: 20.807 | D32: 22.012 | F32: 21.407 | H32: 22.177 | J32: 22.209 | K32: 21.802 | L32: 21.388 | M32: 21.628 | N32: 21.613 | O32: 22.162 | P32: 22.365 | Q32: 22.107 | R32: 22.027 | S32: 22.846 | T32: 23.367 | U32: 25.99 | V32: 15.097 | W32: Val Pusteria
A34: Südtirol insgesamt | B34: 100 | D34: 100 | F34: 100 | H34: 100 | J34: 100 | K34: 100 | L34: 100 | M34: 100 | N34: 100 | O34: 100 | P34: 100 | Q34: 100 | R34: 100 | S34: 100 | T34: 100 | U34: 100 | V34: 100 | W34: Totale provincia

Sheet tab 9
A1: Tab. 9 | Q1: INDEX / INDICE
A3: Übernachtungen in den Beherbergungsbetrieben nach Herkunftsland der Gäste - Tourismusjahre 1991/92-2020/21
A4: Prozentuelle Verteilung
A5: Presenze negli esercizi ricettivi per paese di provenienza - Anni turistici 1991/92-2020/21
A6: Composizione percentuale
B9: Tourismusjahre / Anni turistici
A10: HERKUNFTSLAND | C10: Λ | E10: Λ | G10: Λ | I10: Λ | W10: PAESE DI PROVENIENZA
B11: 1991/1992 | C11: Λ | D11: 1996/1997 | E11: Λ | F11: 2001/2002 | G11: Λ | H11: 2006/2007 | I11: Λ | J11: 2008/2009 | K11: 2009/2010 | L11: 2010/2011 | M11: 2011/2012 | N11: 2012/2013 | O11: 2013/2014 | P11: 2014/2015 | Q11: 2015/2016 | R11: 2016/2017 | S11: 2017/2018 | T11: 2018/2019 | U11: 2019/2020 | V11: 2020/2021
A13: Deutschland | B13: 49.7 | D13: 56.2 | F13: 53.9 | H13: 46.9 | J13: 46.2 | K13: 46 | L13: 46.8 | M13: 48.2 | N13: 48.9 | O13: 49.7 | P13: 48.9 | Q13: 49.1 | R13: 48.8 | S13: 48.7 | T13: 48.8 | U13: 40.7 | V13: 49.1 | W13: Germania
A14: Italien | B14: 39.2 | D14: 33.3 | F14: 33.9 | H14: 37 | J14: 36.8 | K14: 36.8 | L14: 35.4 | M14: 33.4 | N14: 32.3 | O14: 30.9 | P14: 31.7 | Q14: 31.4 | R14: 31.6 | S14: 31.3 | T14: 30.4 | U14: 41.6 | V14: 37.5 | W14: Italia
A15: Österreich | B15: 3.1 | D15: 2.6 | F15: 2.6 | H15: 2.7 | J15: 2.8 | K15: 2.9 | L15: 2.9 | M15: 2.9 | N15: 2.9 | O15: 3.1 | P15: 3.1 | Q15: 3.1 | R15: 3.2 | S15: 3.2 | T15: 3.3 | U15: 2.4 | V15: 3.1 | W15: Austria
A16: Belgien | B16: 1.5 | D16: 1.4 | F16: 1.3 | H16: 1.4 | J16: 1.4 | K16: 1.4 | L16: 1.4 | M16: 1.4 | N16: 1.4 | O16: 1.3 | P16: 1.3 | Q16: 1.2 | R16: 1.2 | S16: 1.2 | T16: 1.2 | U16: 1 | V16: 0.9 | W16: Belgio
A17: Niederlande | B17: 1.2 | D17: 1.2 | F17: 1.4 | H17: 1.8 | J17: 1.9 | K17: 1.9 | L17: 1.9 | M17: 2 | N17: 1.9 | O17: 1.9 | P17: 1.9 | Q17: 1.9 | R17: 1.9 | S17: 1.9 | T17: 1.9 | U17: 1.7 | V17: 1.4 | W17: Paesi Bassi
A18: Schweiz | B18: 2.5 | D18: 2.1 | F18: 2.5 | H18: 3.7 | J18: 3.7 | K18: 3.7 | L18: 4.1 | M18: 4.5 | N18: 4.7 | O18: 4.7 | P18: 4.9 | Q18: 5.1 | R18: 4.9 | S18: 4.8 | T18: 4.8 | U18: 4.2 | V18: 4.4 | W18: Svizzera
A19: Großbritanien | B19: 0.4 | D19: 0.5 | F19: 0.4 | H19: 0.6 | J19: 0.6 | K19: 0.6 | L19: 0.6 | M19: 0.7 | N19: 0.7 | O19: 0.8 | P19: 0.8 | Q19: 0.9 | R19: 0.9 | S19: 0.9 | T19: 0.9 | U19: 0.7 | V19: 0.1 | W19: Regno Unito
A20: Frankreich | B20: 0.5 | D20: 0.4 | F20: 0.4 | H20: 0.6 | J20: 0.6 | K20: 0.6 | L20: 0.6 | M20: 0.6 | N20: 0.6 | O20: 0.6 | P20: 0.6 | Q20: 0.6 | R20: 0.6 | S20: 0.6 | T20: 0.6 | U20: 0.5 | V20: 0.5 | W20: Francia
A21: Vereinigte Staaten | B21: 0.3 | D21: 0.2 | F21: 0.3 | H21: 0.3 | J21: 0.2 | K21: 0.3 | L21: 0.3 | M21: 0.3 | N21: 0.3 | O21: 0.4 | P21: 0.4 | Q21: 0.4 | R21: 0.4 | S21: 0.5 | T21: 0.6 | U21: 0.2 | V21: 0.3 | W21: Stati Uniti d'America
A22: Andere Länder | B22: 1.7 | D22: 2.1 | F22: 3.3 | H22: 4.9 | J22: 5.7 | K22: 5.9 | L22: 6.1 | M22: 6.1 | N22: 6.3 | O22: 6.7 | P22: 6.4 | Q22: 6.4 | R22: 6.5 | S22: 6.9 | T22: 7.5 | U22: 6.9 | V22: 2.7 | W22: Altri Paesi
A24: Insgesamt | B24: 100 | D24: 100 | F24: 100 | H24: 100 | J24: 100 | K24: 100 | L24: 100 | M24: 100 | N24: 100 | O24: 100 | P24: 100 | Q24: 100 | R24: 100 | S24: 100 | T24: 100 | U24: 100 | V24: 100 | W24: Totale

Sheet tab 10
A1: Tab. 10 | Q1: INDEX / INDICE
A3: Übernachtungen der inländischen Gäste in den Beherbergungsbetrieben nach Bezirksgemeinschaft - Tourismusjahre 1991/92-2020/21
A4: Prozentueller Anteil der Übernachtungen der inländischen Gäste an den Gesamtübernachtungen
A5: Presenze dall'Italia negli esercizi ricettivi per comunità comprensoriale - Anni turistici 1991/92-2020/21
A6: Quota percentuale delle presenze di clienti italiani sul totale delle presenze
B8: Tourismusjahre / Anni turistici
A9: BEZIRKSGEMEINSCHAFTEN | C9: Λ | E9: Λ | G9: Λ | I9: Λ | W9: COMUNITÀ COMPRENSORIALE
B10: 1991/1992 | C10: Λ | D10: 1996/1997 | E10: Λ | F10: 2001/2002 | G10: Λ | H10: 2006/2007 | I10: Λ | J10: 2008/2009 | K10: 2009/2010 | L10: 2010/2011 | M10: 2011/2012 | N10: 2012/2013 | O10: 2013/2014 | P10: 2014/2015 | Q10: 2015/2016 | R10: 2016/2017 | S10: 2017/2018 | T10: 2018/2019 | U10: 2019/2020 | V10: 2020/2021
A12: Vinschgau | B12: 37.832 | D12: 26.545 | F12: 27.076 | H12: 26.245 | J12: 25.83 | K12: 26.373 | L12: 24.745 | M12: 22.921 | N12: 22.457 | O12: 20.27 | P12: 20.775 | Q12: 20.372 | R12: 19.403 | S12: 19.596 | T12: 19.819 | U12: 29.41 | V12: 30.044 | W12: Val Venosta
A13: Burggrafenamt | B13: 12.089 | D13: 9.694 | F13: 10.816 | H13: 13.784 | J13: 14.228 | K13: 14.576 | L13: 13.176 | M13: 11.722 | N13: 10.805 | O13: 10.612 | P13: 11.102 | Q13: 10.804 | R13: 11.04 | S13: 11.35 | T13: 11.148 | U13: 19.947 | V13: 10.765 | W13: Burgraviato
A14: Überetsch-Südt. Unterland | B14: 17.915 | D14: 18.433 | F14: 18.359 | H14: 17.419 | J14: 16.891 | K14: 15.77 | L14: 15.289 | M14: 16.177 | N14: 14.412 | O14: 13.114 | P14: 14.175 | Q14: 14.25 | R14: 14.777 | S14: 14.941 | T14: 14.449 | U14: 22.652 | V14: 13.931 | W14: Oltradige-Bassa Atesina
A15: Bozen | B15: 54.866 | D15: 54.264 | F15: 44.698 | H15: 46.465 | J15: 43.524 | K15: 42.892 | L15: 41.989 | M15: 40.317 | N15: 35.894 | O15: 35.92 | P15: 35.29 | Q15: 36.07 | R15: 35.459 | S15: 36.886 | T15: 38.533 | U15: 55.214 | V15: 42.463 | W15: Bolzano
A16: Salten-Schlern | B16: 53.813 | D16: 40.577 | F16: 42.013 | H16: 45.833 | J16: 44.868 | K16: 44.592 | L16: 43.2 | M16: 39.993 | N16: 38.219 | O16: 35.883 | P16: 36.782 | Q16: 36.807 | R16: 36.906 | S16: 36.272 | T16: 35.08 | U16: 45.336 | V16: 50.07 | W16: Salto-Sciliar
A17: Eisacktal | B17: 33.645 | D17: 27.826 | F17: 28.434 | H17: 32.143 | J17: 33.329 | K17: 33.29 | L17: 31.702 | M17: 29.683 | N17: 28.24 | O17: 25.794 | P17: 26.972 | Q17: 26.482 | R17: 26.742 | S17: 26.22 | T17: 25.299 | U17: 36.093 | V17: 32.158 | W17: Valle Isarco
A18: Wipptal | B18: 44.769 | D18: 39.361 | F18: 34.798 | H18: 42.618 | J18: 42.25 | K18: 42.536 | L18: 41.363 | M18: 39.187 | N18: 38.288 | O18: 37.717 | P18: 38.839 | Q18: 37.767 | R18: 39.608 | S18: 38.993 | T18: 36.871 | U18: 44.308 | V18: 44.865 | W18: Alta Valle Isarco
A19: Pustertal | B19: 57.442 | D19: 51.391 | F19: 52.777 | H19: 55.187 | J19: 54.935 | K19: 55.475 | L19: 54.566 | M19: 52.19 | N19: 51.471 | O19: 49.452 | P19: 50.229 | Q19: 50.063 | R19: 50.456 | S19: 49.053 | T19: 47.362 | U19: 56.631 | V19: 65.337 | W19: Val Pusteria
A21: Südtirol insgesamt | B21: 39.151 | D21: 33.301 | F21: 33.855 | H21: 37.013 | J21: 36.8 | K21: 36.846 | L21: 35.434 | M21: 33.384 | N21: 32.263 | O21: 30.875 | P21: 31.724 | Q21: 31.377 | R21: 31.581 | S21: 31.324 | T21: 30.407 | U21: 41.632 | V21: 37.482 | W21: Totale provincia

Sheet tab 11
A1: Tab. 11 | P1: INDEX / INDICE
A3: Index der Brutto-Auslastung der Betten in den gastgewerblichen Beherbergungsbetrieben nach Bezirksgemeinschaft - Tourismusjahre 1991/92-2020/21
A4: Tage
A5: Indice di utilizzazione lordo dei posti letto negli esercizi alberghieri per comunità comprensoriale - Anni turistici 1991/92-2020/21
A6: Giorni
B8: Tourismusjahre / Anni turistici
A9: BEZIRKSGEMEINSCHAFTEN | C9: Λ | E9: Λ | G9: Λ | I9: Λ | W9: COMUNITÀ COMPRENSORIALE
B10: 1991/1992 | C10: Λ | D10: 1996/1997 | E10: Λ | F10: 2001/2002 | G10: Λ | H10: 2006/2007 | I10: Λ | J10: 2008/2009 | K10: 2009/2010 | L10: 2010/2011 | M10: 2011/2012 | N10: 2012/2013 | O10: 2013/2014 | P10: 2014/2015 | Q10: 2015/2016 | R10: 2016/2017 | S10: 2017/2018 | T10: 2018/2019 | U10: 2019/2020 | V10: 2020/2021
A12: Vinschgau | B12: 110.731 | D12: 111.087 | F12: 120.62 | H12: 122.087 | J12: 126.644 | K12: 126.034 | L12: 129.394 | M12: 130.732 | N12: 128.886 | O12: 129.99 | P12: 134.382 | Q12: 141.774 | R12: 141.889 | S12: 142.764 | T12: 152.497 | U12: 110.124 | V12: 88.298 | W12: Val Venosta
A13: Burggrafenamt | B13: 125.71 | D13: 130.679 | F13: 149.051 | H13: 156.315 | J13: 161.035 | K13: 167.838 | L13: 172.008 | M13: 169.859 | N13: 168.332 | O13: 162.985 | P13: 166.843 | Q13: 179.964 | R13: 179.136 | S13: 177.928 | T13: 180.268 | U13: 105.98 | V13: 132.216 | W13: Burgraviato
A14: Überetsch-Südt. Unterland | B14: 103.623 | D14: 108.337 | F14: 124.29 | H14: 123.877 | J14: 126.025 | K14: 130.336 | L14: 135.181 | M14: 135.754 | N14: 128.965 | O14: 125.334 | P14: 125.493 | Q14: 137.286 | R14: 139.9 | S14: 139.755 | T14: 140.094 | U14: 81.702 | V14: 103.876 | W14: Oltradige-Bassa Atesina
A15: Bozen | B15: 167.832 | D15: 177.399 | F15: 186.982 | H15: 177.123 | J15: 152.307 | K15: 164.354 | L15: 175.497 | M15: 173.165 | N15: 166.102 | O15: 167.427 | P15: 182.405 | Q15: 193.307 | R15: 196.765 | S15: 199.651 | T15: 208.557 | U15: 128.787 | V15: 128.013 | W15: Bolzano
A16: Salten-Schlern | B16: 122.86 | D16: 126.925 | F16: 137.387 | H16: 146.186 | J16: 150.68 | K16: 153.655 | L16: 153.379 | M16: 151.944 | N16: 149.867 | O16: 150.16 | P16: 154.029 | Q16: 162.862 | R16: 164.407 | S16: 170.558 | T16: 169.656 | U16: 131.637 | V16: 93.052 | W16: Salto-Sciliar
A17: Eisacktal | B17: 115.792 | D17: 123.866 | F17: 140.093 | H17: 142.31 | J17: 141.737 | K17: 146.675 | L17: 147.032 | M17: 149.406 | N17: 149.437 | O17: 142.678 | P17: 146.288 | Q17: 155.872 | R17: 159.501 | S17: 163.373 | T17: 172.103 | U17: 119.403 | V17: 102.765 | W17: Valle Isarco
A18: Wipptal | B18: 118.3 | D18: 129.293 | F18: 150.786 | H18: 152.938 | J18: 151.77 | K18: 153.433 | L18: 155.957 | M18: 154.161 | N18: 157.51 | O18: 158.628 | P18: 166.092 | Q18: 178.252 | R18: 181.123 | S18: 190.444 | T18: 193.995 | U18: 140.518 | V18: 108.026 | W18: Alta Valle Isarco
A19: Pustertal | B19: 130.538 | D19: 126.818 | F19: 136.449 | H19: 149.797 | J19: 150.939 | K19: 154.502 | L19: 152.906 | M19: 152.066 | N19: 149.892 | O19: 146.807 | P19: 154.823 | Q19: 163.281 | R19: 165.875 | S19: 170.627 | T19: 174.549 | U19: 136.783 | V19: 89.349 | W19: Val Pusteria
A21: Südtirol insgesamt | B21: 122.853 | D21: 125.547 | F21: 138.705 | H21: 146.129 | J21: 148.302 | K21: 152.394 | L21: 153.78 | M21: 153.087 | N21: 151.12 | O21: 148.371 | P21: 153.552 | Q21: 163.516 | R21: 165.091 | S21: 168.196 | T21: 171.673 | U21: 121.462 | V21: 102.809 | W21: Totale provincia

Sheet tab 12
A1: Tab. 12 | J1: INDEX / INDICE
A3: Ankünfte und Übernachtungen nach Gemeinde - Tourismusjahr 2020/21
A5: Arrivi e presenze per comune - Anno turistico 2020/21
D8: Tourismusjahr 2020/21 / Anno turistico 2020/21
B9: GEMEINDEN | C9: COMUNI | D9: Ankünfte / Arrivi | F9: Übernachtungen / Presenze | H9: Mittl. Aufenthaltsdauer | I9: Betten | J9: % Auslastung / % utilizzo
D10: Anzahl | E10: % Veränd. g. 19/20 | F10: Anzahl | G10: % Veränd. g. 19/20 | J10: Brutto
D11: Numero | E11: Var. % risp. 19/20 | F11: Numero | G11: Var. % risp. 19/20 | H11: Perm. media | I11: Posti letto | J11: Lordo
A13: 001 | B13: Aldein | C13: Aldino | D13: 10379 | E13: -5.249 | F13: 47973 | G13: -14.288 | H13: 4.622 | I13: 912 | J13: 14.411
A14: 002 | B14: Andrian | C14: Andriano | D14: 12123 | E14: 25.823 | F14: 58804 | G14: 31.151 | H14: 4.851 | I14: 533 | J14: 30.226
A15: 003 | B15: Altrei | C15: Anterivo | D15: 2747 | E15: -9.846 | F15: 15119 | G15: 4.406 | H15: 5.504 | I15: 190 | J15: 21.801
A16: 004 | B16: Eppan a.d. Weinstr. | C16: Appiano | D16: 84949 | E16: 27.806 | F16: 452147 | G16: 33.108 | H16: 5.323 | I16: 4188 | J16: 29.579
A17: 005 | B17: Hafling | C17: Avelengo | D17: 46971 | E17: -15.413 | F17: 226983 | G17: -12.199 | H17: 4.832 | I17: 1390 | J17: 44.755
A19: 006 | B19: Abtei | C19: Badia | D19: 115588 | E19: -40.486 | F19: 581072 | G19: -43.31 | H19: 5.027 | I19: 9034 | J19: 17.623
A20: 007 | B20: Barbian | C20: Barbiano | D20: 16958 | E20: -4.757 | F20: 89754 | G20: 3.612 | H20: 5.293 | I20: 764 | J20: 32.186
A21: 008 | B21: Bozen | C21: Bolzano | D21: 187262 | E21: -4.551 | F21: 455815 | G21: 2.135 | H21: 2.434 | I21: 4192 | J21: 29.794
A22: 009 | B22: Prags | C22: Braies | D22: 32353 | E22: -16.875 | F22: 109184 | G22: -17.151 | H22: 3.375 | I22: 1264 | J22: 23.666
A23: 010 | B23: Brenner | C23: Brennero | D23: 33430 | E23: -24.907 | F23: 125579 | G23: -32.091 | H23: 3.756 | I23: 1907 | J23: 18.042
A25: 011 | B25: Brixen | C25: Bressanone | D25: 116639 | E25: -11.267 | F25: 413651 | G25: -9.697 | H25: 3.546 | I25: 4824 | J25: 23.495
A26: 012 | B26: Branzoll | C26: Bronzolo | D26: 1486 | E26: -5.77 | F26: 5663 | G26: 9.114 | H26: 3.811 | I26: 73 | J26: 21.254
A27: 013 | B27: Bruneck | C27: Brunico | D27: 83528 | E27: -28.448 | F27: 341942 | G27: -30.638 | H27: 4.094 | I27: 3806 | J27: 24.614
A28: 014 | B28: Kuens | C28: Caines | D28: 2326 | E28: 25.054 | F28: 16857 | G28: 28.434 | H28: 7.247 | I28: 187 | J28: 24.697
A29: 015 | B29: Kaltern a.d. Weinstr. | C29: Caldaro | D29: 109014 | E29: 32.549 | F29: 520087 | G29: 41.894 | H29: 4.771 | I29: 4702 | J29: 30.307
A31: 016 | B31: Freienfeld | C31: Campo di Trens | D31: 32192 | E31: -12.087 | F31: 85827 | G31: -12.095 | H31: 2.666 | I31: 1180 | J31: 19.936
A32: 017 | B32: Sand in Taufers | C32: Campo Tures | D32: 45288 | E32: -37.659 | F32: 251242 | G32: -31.285 | H32: 5.548 | I32: 3278 | J32: 21.002
A33: 018 | B33: Kastelbell-Tschars | C33: Castelbello-Ciardes | D33: 11156 | E33: 34.914 | F33: 61494 | G33: 39.759 | H33: 5.512 | I33: 631 | J33: 26.7
A34: 019 | B34: Kastelruth | C34: Castelrotto | D34: 174317 | E34: -27.579 | F34: 900679 | G34: -28.788 | H34: 5.167 | I34: 8968 | J34: 27.517
A35: 020 | B35: Tscherms | C35: Cermes | D35: 13778 | E35: 36.47 | F35: 76252 | G35: 42.575 | H35: 5.534 | I35: 656 | J35: 31.87
A37: 021 | B37: Kiens | C37: Chienes | D37: 33256 | E37: -37.097 | F37: 159978 | G37: -33.161 | H37: 4.811 | I37: 1682 | J37: 26.058
A38: 022 | B38: Klausen | C38: Chiusa | D38: 48303 | E38: 15.395 | F38: 142789 | G38: 18.278 | H38: 2.956 | I38: 1391 | J38: 28.124
A39: 023 | B39: Karneid | C39: Cornedo | D39: 16342 | E39: 18.566 | F39: 67200 | G39: 32.185 | H39: 4.112 | I39: 715 | J39: 25.75
A40: 024 | B40: Kurtatsch a.d. Weinstr. | C40: Cortaccia | D40: 7619 | E40: 14.074 | F40: 39800 | G40: 27.97 | H40: 5.224 | I40: 532 | J40: 20.496
A41: 025 | B41: Kurtinig a.d. Weinstr. | C41: Cortina | D41: 5554 | E41: 9.052 | F41: 19282 | G41: 26.697 | H41: 3.472 | I41: 183 | J41: 28.867
A43: 026 | B43: Corvara | C43: Corvara | D43: 92869 | E43: -41.088 | F43: 429516 | G43: -47.748 | H43: 4.625 | I43: 7667 | J43: 15.348
A44: 027 | B44: Graun im Vinschgau | C44: Curon Venosta | D44: 59063 | E44: -22.563 | F44: 205804 | G44: -36.926 | H44: 3.484 | I44: 3020 | J44: 18.67
A45: 028 | B45: Toblach | C45: Dobbiaco | D45: 106586 | E45: -17.68 | F45: 421700 | G45: -19.147 | H45: 3.956 | I45: 5273 | J45: 21.911
A46: 029 | B46: Neumarkt | C46: Egna | D46: 7828 | E46: 6.721 | F46: 18393 | G46: 4.684 | H46: 2.35 | I46: 220 | J46: 22.958
A47: 030 | B47: Pfalzen | C47: Falzes | D47: 16012 | E47: -34.823 | F47: 90255 | G47: -26.998 | H47: 5.637 | I47: 1003 | J47: 24.666
A49: 031 | B49: Völs am Schlern | C49: Fiè allo Sciliar | D49: 59479 | E49: -3.728 | F49: 279005 | G49: -8.019 | H49: 4.691 | I49: 2813 | J49: 27.174
A50: 032 | B50: Franzensfeste | C50: Fortezza | D50: 6807 | E50: -16.118 | F50: 13775 | G50: -28.072 | H50: 2.024 | I50: 200 | J50: 18.87
A51: 033 | B51: Villnöß | C51: Funes | D51: 31139 | E51: 2.062 | F51: 136800 | G51: 1.749 | H51: 4.393 | I51: 1460 | J51: 25.671
A52: 034 | B52: Gais | C52: Gais | D52: 21569 | E52: -32.167 | F52: 102118 | G52: -28.687 | H52: 4.734 | I52: 1066 | J52: 26.245
A53: 035 | B53: Gargazon | C53: Gargazzone | D53: 6269 | E53: 16.416 | F53: 31218 | G53: 27.166 | H53: 4.98 | I53: 307 | J53: 27.86
A55: 036 | B55: Glurns | C55: Glorenza | D55: 18149 | E55: 22.397 | F55: 55972 | G55: 21.081 | H55: 3.084 | I55: 669 | J55: 22.922
A56: 037 | B56: Latsch | C56: Laces | D56: 45827 | E56: 27.026 | F56: 214472 | G56: 28.209 | H56: 4.68 | I56: 1804 | J56: 32.572
A57: 038 | B57: Algund | C57: Lagundo | D57: 78878 | E57: 21.622 | F57: 445424 | G57: 35.042 | H57: 5.647 | I57: 3623 | J57: 33.683
A58: 039 | B58: Lajen | C58: Laion | D58: 19705 | E58: -19.594 | F58: 89185 | G58: -17.805 | H58: 4.526 | I58: 1047 | J58: 23.349
A59: 040 | B59: Leifers | C59: Laives | D59: 46118 | E59: 4.01 | F59: 179524 | G59: 26.553 | H59: 3.893 | I59: 1503 | J59: 32.724
A61: 041 | B61: Lana | C61: Lana | D61: 86940 | E61: 24.742 | F61: 489214 | G61: 36.507 | H61: 5.627 | I61: 4077 | J61: 32.875
A62: 042 | B62: Laas | C62: Lasa | D62: 6007 | E62: 18.458 | F62: 26973 | G62: 23.69 | H62: 4.49 | I62: 339 | J62: 21.799
A63: 043 | B63: Laurein | C63: Lauregno | D63: 171 | E63: 9.615 | F63: 905 | G63: 7.867 | H63: 5.292 | I63: 52 | J63: 4.768
A64: 044 | B64: Lüsen | C64: Luson | D64: 22920 | E64: -10.507 | F64: 109791 | G64: -10.382 | H64: 4.79 | I64: 986 | J64: 30.507
A65: 045 | B65: Margreid a.d. Weinstr. | C65: Magrè | D65: 2330 | E65: 40.531 | F65: 7031 | G65: 44.909 | H65: 3.018 | I65: 122 | J65: 15.789
A67: 046 | B67: Mals | C67: Malles Venosta | D67: 57388 | E67: -10.274 | F67: 242867 | G67: -10.159 | H67: 4.232 | I67: 2518 | J67: 26.425
A68: 047 | B68: Enneberg | C68: Marebbe | D68: 70112 | E68: -39.423 | F68: 322836 | G68: -43.587 | H68: 4.605 | I68: 4688 | J68: 18.869
A69: 048 | B69: Marling | C69: Marlengo | D69: 36403 | E69: 34.388 | F69: 186660 | G69: 43.46 | H69: 5.128 | I69: 1631 | J69: 31.355
A70: 049 | B70: Martell | C70: Martello | D70: 11113 | E70: 4.465 | F70: 49341 | G70: 0.604 | H70: 4.44 | I70: 705 | J70: 19.175
A71: 050 | B71: Mölten | C71: Meltina | D71: 6233 | E71: 18.363 | F71: 31198 | G71: 23.225 | H71: 5.005 | I71: 453 | J71: 18.889
A73: 051 | B73: Meran | C73: Merano | D73: 211635 | E73: 2.335 | F73: 768828 | G73: 19.983 | H73: 3.633 | I73: 6310 | J73: 33.382
A74: 052 | B74: Welsberg-Taisten | C74: Monguelfo | D74: 29097 | E74: -21.461 | F74: 134407 | G74: -21.263 | H74: 4.619 | I74: 1332 | J74: 27.646
A75: 053 | B75: Montan | C75: Montagna | D75: 8510 | E75: 13.831 | F75: 36219 | G75: 21.765 | H75: 4.256 | I75: 616 | J75: 16.109
A76: 054 | B76: Moos in Passeier | C76: Moso in Passiria | D76: 25467 | E76: -7.285 | F76: 83272 | G76: -20.271 | H76: 3.27 | I76: 1261 | J76: 18.092
A77: 055 | B77: Nals | C77: Nalles | D77: 19847 | E77: 50.015 | F77: 85604 | G77: 47.451 | H77: 4.313 | I77: 684 | J77: 34.288
A79: 056 | B79: Naturns | C79: Naturno | D79: 72072 | E79: 23.333 | F79: 386274 | G79: 30.614 | H79: 5.36 | I79: 2890 | J79: 36.625
A80: 057 | B80: Natz-Schabs | C80: Naz-Sciaves | D80: 41663 | E80: -10.931 | F80: 204190 | G80: -9.554 | H80: 4.901 | I80: 2656 | J80: 21.067
A81: 058 | B81: Welschnofen | C81: Nova Levante | D81: 28345 | E81: -29.884 | F81: 132484 | G81: -30.72 | H81: 4.674 | I81: 1775 | J81: 20.455
A82: 059 | B82: Deutschnofen | C82: Nova Ponente | D82: 46407 | E82: -26.878 | F82: 229942 | G82: -26.621 | H82: 4.955 | I82: 2870 | J82: 21.954
A83: 060 | B83: Auer | C83: Ora | D83: 25731 | E83: 23.469 | F83: 85027 | G83: 35.772 | H83: 3.304 | I83: 1110 | J83: 20.996
A85: 061 | B85: St.Ulrich | C85: Ortisei | D85: 68321 | E85: -33.81 | F85: 353222 | G85: -36.196 | H85: 5.17 | I85: 4791 | J85: 20.201
A86: 062 | B86: Partschins | C86: Parcines | D86: 49304 | E86: 30.182 | F86: 246841 | G86: 37.858 | H86: 5.007 | I86: 2191 | J86: 30.866
A87: 063 | B87: Percha | C87: Perca | D87: 7154 | E87: -40.621 | F87: 39940 | G87: -36.289 | H87: 5.583 | I87: 414 | J87: 26.431
A88: 064 | B88: Plaus | C88: Plaus | D88: 6729 | E88: 43.844 | F88: 39934 | G88: 53.835 | H88: 5.935 | I88: 353 | J88: 30.994
A89: 065 | B89: Waidbruck | C89: Ponte Gardena | D89: 12 | E89: -36.842 | F89: 961 | G89: -22.437 | H89: 80.083 | I89: 19 | J89: 13.857
A91: 066 | B91: Burgstall | C91: Postal | D91: 14605 | E91: 2.226 | F91: 57711 | G91: 17.669 | H91: 3.951 | I91: 469 | J91: 33.713
A92: 067 | B92: Prad am Stilfser Joch | C92: Prato allo Stelvio | D92: 28896 | E92: 8.432 | F92: 143378 | G92: 14.855 | H92: 4.962 | I92: 1872 | J92: 20.984
A93: 068 | B93: Prettau | C93: Predoi | D93: 3313 | E93: -34.848 | F93: 14744 | G93: -35.512 | H93: 4.45 | I93: 382 | J93: 10.588
A94: 069 | B94: Proveis | C94: Proves | D94: 272 | E94: 19.298 | F94: 1730 | G94: 22.869 | H94: 6.36 | I94: 109 | J94: 4.368
A95: 070 | B95: Ratschings | C95: Racines | D95: 82045 | E95: -31.174 | F95: 362075 | G95: -29.672 | H95: 4.413 | I95: 4306 | J95: 23.037
A97: 071 | B97: Rasen-Antholz | C97: Rasun Anterselva | D97: 67533 | E97: -20.906 | F97: 321090 | G97: -20.127 | H97: 4.755 | I97: 3611 | J97: 24.365
A98: 072 | B98: Ritten | C98: Renon | D98: 60469 | E98: -5.729 | F98: 283480 | G98: 2.423 | H98: 4.688 | I98: 2979 | J98: 26.071
A99: 073 | B99: Riffian | C99: Rifiano | D99: 11840 | E99: 35.485 | F99: 62209 | G99: 38.35 | H99: 5.254 | I99: 695 | J99: 24.523
A100: 074 | B100: Mühlbach | C100: Rio Pusteria | D100: 103327 | E100: -18.941 | F100: 485416 | G100: -20.342 | H100: 4.698 | I100: 4364 | J100: 30.474
A101: 075 | B101: Rodeneck | C101: Rodengo | D101: 13499 | E101: -17.265 | F101: 66207 | G101: -7.704 | H101: 4.905 | I101: 948 | J101: 19.144
A103: 076 | B103: Salurn a.d.Weinstr. | C103: Salorno s.s.d.vino | D103: 7704 | E103: 42.984 | F103: 15278 | G103: 24.861 | H103: 1.983 | I103: 460 | J103: 9.109
A104: 077 | B104: Innichen | C104: S.Candido | D104: 66369 | E104: -34.742 | F104: 337398 | G104: -33.145 | H104: 5.084 | I104: 3643 | J104: 25.374
A105: 079 | B105: Jenesien | C105: S.Genesio | D105: 17800 | E105: 17.546 | F105: 76488 | G105: 16.793 | H105: 4.297 | I105: 720 | J105: 29.105
A106: 080 | B106: St.Leonhard in Pass. | C106: S.Leonardo in Passi | D106: 53380 | E106: 13.941 | F106: 244879 | G106: 17.217 | H106: 4.587 | I106: 1883 | J106: 35.629
A107: 081 | B107: St.Lorenzen | C107: S.Lorenzo di Sebato | D107: 54414 | E107: -22.232 | F107: 265606 | G107: -20.233 | H107: 4.881 | I107: 1773 | J107: 41.043
A109: 082 | B109: St.Martin in Thurn | C109: S.Martino in Badia | D109: 17605 | E109: -32.491 | F109: 85302 | G109: -30.055 | H109: 4.845 | I109: 1271 | J109: 18.387
A110: 083 | B110: St.Martin in Passeier | C110: S.Martino in Passir | D110: 55021 | E110: 12.732 | F110: 281977 | G110: 21.958 | H110: 5.125 | I110: 1650 | J110: 46.821
A111: 084 | B111: St.Pankraz | C111: S.Pancrazio | D111: 1503 | E111: -50.05 | F111: 10704 | G111: -32.129 | H111: 7.122 | I111: 219 | J111: 13.391
A112: 085 | B112: St.Christina in Gröden | C112: S.Cristina Val Gard | D112: 43149 | E112: -36.316 | F112: 214930 | G112: -39.258 | H112: 4.981 | I112: 3168 | J112: 18.59
A113: 086 | B113: Sarntal | C113: Sarentino | D113: 23301 | E113: -22.573 | F113: 93260 | G113: -19.101 | H113: 4.002 | I113: 1606 | J113: 15.91
A115: 087 | B115: Schenna | C115: Scena | D115: 134158 | E115: 28.715 | F115: 815850 | G115: 38.023 | H115: 6.081 | I115: 5906 | J115: 37.846
A116: 088 | B116: Mühlwald | C116: Selva dei Molini | D116: 9540 | E116: -28.043 | F116: 46410 | G116: -28.867 | H116: 4.865 | I116: 824 | J116: 15.431
A117: 089 | B117: Wolkenstein in Gröden | C117: Selva di Val Garden | D117: 116722 | E117: -39.263 | F117: 575910 | G117: -44.401 | H117: 4.934 | I117: 8644 | J117: 18.255
A118: 091 | B118: Schnals | C118: Senales | D118: 40482 | E118: -27.878 | F118: 148595 | G118: -39.58 | H118: 3.671 | I118: 2393 | J118: 17.013
A119: 092 | B119: Sexten | C119: Sesto | D119: 96761 | E119: -28.242 | F119: 460746 | G119: -26.912 | H119: 4.762 | I119: 4672 | J119: 27.022
A121: 093 | B121: Schlanders | C121: Silandro | D121: 31394 | E121: 24.604 | F121: 126327 | G121: 31.007 | H121: 4.024 | I121: 1318 | J121: 26.26
A122: 094 | B122: Schluderns | C122: Sluderno | D122: 5713 | E122: -19.068 | F122: 23046 | G122: -15.989 | H122: 4.034 | I122: 343 | J122: 18.408
A123: 095 | B123: Stilfs | C123: Stelvio | D123: 61857 | E123: -22.044 | F123: 229657 | G123: -33.625 | H123: 3.713 | I123: 3616 | J123: 17.403
A124: 096 | B124: Terenten | C124: Terento | D124: 18678 | E124: -32.779 | F124: 89301 | G124: -27.302 | H124: 4.781 | I124: 1017 | J124: 24.057
A125: 097 | B125: Terlan | C125: Terlano | D125: 17198 | E125: 14.676 | F125: 71649 | G125: 26.62 | H125: 4.166 | I125: 742 | J125: 26.455
A127: 098 | B127: Tramin a.d. Weinstr. | C127: Termeno | D127: 29222 | E127: 34.385 | F127: 160296 | G127: 42.794 | H127: 5.485 | I127: 1542 | J127: 28.49
A128: 099 | B128: Tisens | C128: Tesimo | D128: 20394 | E128: 30.882 | F128: 111582 | G128: 36.709 | H128: 5.471 | I128: 1340 | J128: 22.814
A129: 100 | B129: Tiers | C129: Tires | D129: 30661 | E129: 17.823 | F129: 110509 | G129: 7.298 | H129: 3.604 | I129: 964 | J129: 31.407
A130: 101 | B130: Tirol | C130: Tirolo | D130: 114964 | E130: 37.726 | F130: 656118 | G130: 46.467 | H130: 5.707 | I130: 5063 | J130: 35.504
A131: 102 | B131: Truden im Naturpark | C131: Trodena | D131: 6706 | E131: -18.666 | F131: 31651 | G131: -8.61 | H131: 4.72 | I131: 537 | J131: 16.148
A133: 103 | B133: Taufers im Münstertal | C133: Tubre | D133: 4031 | E133: -27.734 | F133: 20438 | G133: -19.665 | H133: 5.07 | I133: 183 | J133: 30.598
A134: 104 | B134: Ulten | C134: Ultimo | D134: 24203 | E134: -22.409 | F134: 126297 | G134: -19.227 | H134: 5.218 | I134: 1345 | J134: 25.726
A135: 105 | B135: Pfatten | C135: Vadena | D135: 5316 | E135: 35.785 | F135: 30687 | G135: 41.337 | H135: 5.773 | I135: 251 | J135: 33.496
A136: 106 | B136: Olang | C136: Valdaora | D136: 57762 | E136: -36.065 | F136: 298799 | G136: -35.356 | H136: 5.173 | I136: 3082 | J136: 26.562
A137: 107 | B137: Pfitsch | C137: Val di Vizze | D137: 21112 | E137: -9.422 | F137: 75867 | G137: 2.592 | H137: 3.594 | I137: 1015 | J137: 20.478
A139: 108 | B139: Ahrntal | C139: Valle Aurina | D139: 88017 | E139: -33.4 | F139: 465753 | G139: -32.239 | H139: 5.292 | I139: 5183 | J139: 24.62
A140: 109 | B140: Gsies | C140: Valle di Casies | D140: 37070 | E140: -20.134 | F140: 195119 | G140: -16.894 | H140: 5.264 | I140: 1815 | J140: 29.453
A141: 110 | B141: Vintl | C141: Vandoies | D141: 9724 | E141: -20.866 | F141: 44642 | G141: -1.424 | H141: 4.591 | I141: 1083 | J141: 11.293
A142: 111 | B142: Vahrn | C142: Varna | D142: 32811 | E142: -0.546 | F142: 96945 | G142: 2.692 | H142: 2.955 | I142: 1005 | J142: 26.428
A143: 112 | B143: Vöran | C143: Verano | D143: 4658 | E143: 25.722 | F143: 29223 | G143: 26.792 | H143: 6.274 | I143: 337 | J143: 23.758
A145: 113 | B145: Niederdorf | C145: Villabassa | D145: 23783 | E145: -25.683 | F145: 115055 | G145: -19.467 | H145: 4.838 | I145: 1327 | J145: 23.754
A146: 114 | B146: Villanders | C146: Villandro | D146: 19784 | E146: -6.09 | F146: 93776 | G146: 0.121 | H146: 4.74 | I146: 935 | J146: 27.478
A147: 115 | B147: Sterzing | C147: Vipiteno | D147: 61277 | E147: -11.54 | F147: 136459 | G147: -21.003 | H147: 2.227 | I147: 1234 | J147: 30.297
A148: 116 | B148: Feldthurns | C148: Velturno | D148: 15304 | E148: -9.849 | F148: 66739 | G148: -1.896 | H148: 4.361 | I148: 704 | J148: 25.973
A149: 117 | B149: Wengen | C149: La Valle | D149: 9399 | E149: -38.629 | F149: 52750 | G149: -35.513 | H149: 5.612 | I149: 726 | J149: 19.906
A150: 118 | B150: U.L.Frau i.W.-St.Felix | C150: Senale-S.Felice | D150: 3763 | E150: -0.027 | F150: 13491 | G150: 5.58 | H150: 3.585 | I150: 201 | J150: 18.389
B152: Südtirol insgesamt | C152: Totale provincia | D152: 4678276 | E152: -13.599 | F152: 21215844 | G152: -12.98 | H152: 4.535 | I152: 229160 | J152: 25.365

Sheet tab 13
A1: Tab. 13 | J1: INDEX / INDICE
A3: Ankünfte und Übernachtungen nach Tourismusverein - Tourismusjahr 2020/21
A5: Arrivi e presenze per associazioni - Anno turistico 2020/21
C7: Tourismusjahr 2020/21 / Anno turistico 2020/21
A8: TOURISMUSVEREINE | B8: ASSOCIAZIONE TURISTICHE | C8: Ankünfte / Arrivi | E8: Übernachtungen / Presenze | G8: Mittl. Aufenthaltsdauer | H8: Betten | I8: % Auslastung / % utilizzo
C9: Anzahl | D9: % Veränd. g.19/20 | E9: Anzahl | F9: % Veränd. g.19/20 | I9: Brutto
C10: Numero | D10: Var. % risp. 19/20 | E10: Numero | F10: Var. % risp. 19/20 | G10: Perm. media | H10: Posti letto | I10: Lordo
A12: Kastelbell-Tschars | B12: Castelbello-Ciardes | C12: 11156 | D12: 34.914 | E12: 61494 | F12: 39.759 | G12: 5.512 | H12: 631 | I12: 26.7
A13: Latsch-Martell mit Goldrain, Morter, Tarsch | B13: Laces-Martello con Coldrano, Morter, Tarres | C13: 56940 | D13: 21.888 | E13: 263813 | F13: 21.95 | G13: 4.633 | H13: 2509 | I13: 28.807
A14: Mals, Schluderns, Taufers im Münstertal und Glurns | B14: Malles, Sluderno, Tubre, Glorenza | C14: 85281 | D14: -6.719 | E14: 342323 | F14: -7.337 | G14: 4.014 | H14: 3713 | I14: 25.259
A15: Ortlergebiet im Nationalpark Stilfserjoch | B15: Gruppo Ortles nel Parco Nazionale dello Stelvio | C15: 61857 | D15: -22.044 | E15: 229657 | F15: -33.625 | G15: 3.713 | H15: 3616 | I15: 17.403
A16: Schlanders-Laas im Nationalpark Stilfserjoch | B16: Silandro-Lasa nel Parco Nazionale dello Stelvio | C16: 37401 | D16: 23.574 | E16: 153300 | F16: 29.657 | G16: 4.099 | H16: 1657 | I16: 25.347
A17: Reschenpass | B17: Passo Resia | C17: 59063 | D17: -22.563 | E17: 205804 | F17: -36.926 | G17: 3.484 | H17: 3020 | I17: 18.67
A18: Prad am Stiflserjoch | B18: Prato allo Stelvio | C18: 28896 | D18: 8.432 | E18: 143378 | F18: 14.855 | G18: 4.962 | H18: 1872 | I18: 20.984
A19: Vinschgau | B19: Val Venosta | C19: 340594 | D19: -5.112 | E19: 1399769 | F19: -9.407 | G19: 4.11 | H19: 17018 | I19: 22.536
A21: Algund | B21: Lagundo | C21: 78878 | D21: 21.622 | E21: 445424 | F21: 35.042 | G21: 5.647 | H21: 3623 | I21: 33.683
A22: Deutschnonsberg | B22: Alta Val di Non | C22: 3934 | D22: 0.357 | E22: 14396 | F22: 5.721 | G22: 3.659 | H22: 253 | I22: 15.589
A23: Dorf Tirol | B23: Tirolo | C23: 114964 | D23: 37.726 | E23: 656118 | F23: 46.467 | G23: 5.707 | H23: 5063 | I23: 35.504
A24: Hafling-Vöran-Meran 2000 | B24: Avelengo-Verano-Merano 2000 | C24: 51629 | D24: -12.84 | E24: 256206 | F24: -9.007 | G24: 4.962 | H24: 1727 | I24: 40.656
A25: Lana und Umgebung | B25: Lana e dintorni | C25: 121592 | D25: 22.247 | E25: 654395 | F25: 34.8 | G25: 5.382 | H25: 5509 | I25: 32.547
A26: Marling | B26: Marlengo | C26: 36403 | D26: 34.388 | E26: 186660 | F26: 43.46 | G26: 5.128 | H26: 1631 | I26: 31.355
A27: Meran | B27: Merano | C27: 211635 | D27: 2.335 | E27: 768828 | F27: 19.983 | G27: 3.633 | H27: 6310 | I27: 33.382
A28: Nals | B28: Nalles | C28: 19847 | D28: 50.015 | E28: 85604 | F28: 47.451 | G28: 4.313 | H28: 684 | I28: 34.288
A29: Naturns-Plaus | B29: Naturno-Plaus | C29: 78801 | D29: 24.853 | E29: 426208 | F29: 32.487 | G29: 5.409 | H29: 3243 | I29: 36.012
A30: Partschins, Rabland und Töll | B30: Parcines, Rablŕ e Tel | C30: 49304 | D30: 30.182 | E30: 246841 | F30: 37.858 | G30: 5.007 | H30: 2191 | I30: 30.866
A31: Schenna | B31: Scena | C31: 134158 | D31: 28.715 | E31: 815850 | F31: 38.023 | G31: 6.081 | H31: 5906 | I31: 37.846
A32: Schnals | B32: Val Senales | C32: 40482 | D32: -27.878 | E32: 148595 | F32: -39.58 | G32: 3.671 | H32: 2393 | I32: 17.013
A33: Passeiertal | B33: Val Passiria | C33: 148034 | D33: 10.702 | E33: 689194 | F33: 14.36 | G33: 4.656 | H33: 5676 | I33: 33.266
A34: Tisens-Prissian | B34: Tesimo-Prissiano | C34: 20394 | D34: 30.882 | E34: 111582 | F34: 36.709 | G34: 5.471 | H34: 1340 | I34: 22.814
A35: Ultental-Proveis | B35: Val d'Ultimo-Proves | C35: 25978 | D35: -24.548 | E35: 138731 | F35: -20.058 | G35: 5.34 | H35: 1673 | I35: 22.726
A36: Meraner Land | B36: Merano e dintorni | C36: 1136033 | D36: 13.246 | E36: 5644632 | F36: 23.165 | G36: 4.969 | H36: 47220 | I36: 32.75
A38: Aldein-Radein | B38: Aldino-Redagno | C38: 10379 | D38: -5.249 | E38: 47973 | F38: -14.288 | G38: 4.622 | H38: 912 | I38: 14.411
A39: Andrian | B39: Andriano | C39: 12123 | D39: 25.823 | E39: 58804 | F39: 31.151 | G39: 4.851 | H39: 533 | I39: 30.226
A40: Auer-Montan-Neumarkt-Salurn | B40: Ora-Montagna-Egna-Salorno | C40: 49773 | D40: 21.282 | E40: 154917 | F40: 26.798 | G40: 3.112 | H40: 2405 | I40: 17.651
A41: Bozen | B41: Bolzano | C41: 187262 | D41: -4.551 | E41: 455815 | F41: 2.135 | G41: 2.434 | H41: 4192 | I41: 29.794
A42: Eppan an der Weinstraße | B42: Appiano sulla Strada del Vino | C42: 84949 | D42: 27.806 | E42: 452147 | F42: 33.108 | G42: 5.323 | H42: 4188 | I42: 29.579
A43: Jenesien | B43: S.Genesio | C43: 17800 | D43: 17.546 | E43: 76488 | F43: 16.793 | G43: 4.297 | H43: 720 | I43: 29.105
A44: Kaltern am See | B44: Caldaro al Lago | C44: 109014 | D44: 32.549 | E44: 520087 | F44: 41.894 | G44: 4.771 | H44: 4702 | I44: 30.307
A45: Leifers, Branzoll, Pfatten | B45: Laives-Bronzolo-Vadena | C45: 52920 | D45: 6.197 | E45: 215874 | F45: 27.919 | G45: 4.079 | H45: 1827 | I45: 32.372
A46: Mölten | B46: Meltina | C46: 6233 | D46: 18.363 | E46: 31198 | F46: 23.225 | G46: 5.005 | H46: 453 | I46: 18.889
A47: Naturpark Trudner Horn | B47: Parco Naturale Monte Corno | C47: 9453 | D47: -16.286 | E47: 46770 | F47: -4.773 | G47: 4.948 | H47: 727 | I47: 17.625
A48: Ritten | B48: Renon | C48: 60469 | D48: -5.729 | E48: 283480 | F48: 2.423 | G48: 4.688 | H48: 2979 | I48: 26.071
A49: Sarntal | B49: Val Sarentino | C49: 23301 | D49: -22.573 | E49: 93260 | F49: -19.101 | G49: 4.002 | H49: 1606 | I49: 15.91
A50: Südtiroler Unterland | B50: Bassa Atesina | C50: 15503 | D50: 15.436 | E50: 66113 | F50: 29.198 | G50: 4.265 | H50: 837 | I50: 21.641
A51: Terlan | B51: Terlano | C51: 17198 | D51: 14.676 | E51: 71649 | F51: 26.62 | G51: 4.166 | H51: 742 | I51: 26.455
A52: Tramin | B52: Termeno | C52: 29222 | D52: 34.385 | E52: 160296 | F52: 42.794 | G52: 5.485 | H52: 1542 | I52: 28.49
A53: Südtirols Süden | B53: Bolzano Vigneti e Dolomiti | C53: 685599 | D53: 8.4 | E53: 2734871 | F53: 19.102 | G53: 3.989 | H53: 28363 | I53: 26.418
A55: Eggental | B55: Val d'Ega | C55: 46407 | D55: -26.878 | E55: 229942 | F55: -26.621 | G55: 4.955 | H55: 2870 | I55: 21.954
A56: Steinegg | B56: Collepietra | C56: 16342 | D56: 18.566 | E56: 67200 | F56: 32.185 | G56: 4.112 | H56: 715 | I56: 25.75
A57: Welschnofen-Karersee | B57: Nova Levante-Carezza | C57: 28345 | D57: -29.884 | E57: 132484 | F57: -30.72 | G57: 4.674 | H57: 1775 | I57: 20.455
A58: Eggental | B58: Val d'Ega | C58: 91094 | D58: -22.588 | E58: 429626 | F58: -22.65 | G58: 4.716 | H58: 5359 | I58: 21.964
A60: Schlern (Kastelruth) | B60: Sciliar-Castelrotto | C60: 54612 | D60: -29.97 | E60: 307851 | F60: -25.506 | G60: 5.637 | H60: 3131 | I60: 26.938
A61: Seis am Schlern | B61: Siusi allo Sciliar | C61: 37419 | D61: -27.156 | E61: 207501 | F61: -26.805 | G61: 5.545 | H61: 2034 | I61: 27.95
A62: Seiser Alm | B62: Alpe di Siusi | C62: 48719 | D62: -22.2 | E62: 221526 | F62: -30.456 | G62: 4.547 | H62: 2017 | I62: 30.09
A63: Tiers am Rosengarten | B63: Tires al Catinaccio | C63: 30661 | D63: 17.823 | E63: 110509 | F63: 7.298 | G63: 3.604 | H63: 964 | I63: 31.407
A64: Völs am Schlern | B64: Fiè allo Sciliar | C64: 59479 | D64: -3.728 | E64: 279005 | F64: -8.019 | G64: 4.691 | H64: 2813 | I64: 27.174
A65: Seiser Alm | B65: Alpe di Siusi | C65: 230890 | D65: -17.474 | E65: 1126392 | F65: -20.766 | G65: 4.878 | H65: 11057 | I65: 27.911
A67: St.Christina | B67: S.Cristina | C67: 43149 | D67: -36.316 | E67: 214930 | F67: -39.258 | G67: 4.981 | H67: 3168 | I67: 18.59
A68: St.Ulrich | B68: Ortisei | C68: 101888 | D68: -32.944 | E68: 517023 | F68: -35.621 | G68: 5.074 | H68: 6479 | I68: 21.865
A69: Wolkenstein | B69: Selva Val Gardena | C69: 116722 | D69: -39.263 | E69: 575910 | F69: -44.401 | G69: 4.934 | H69: 8644 | I69: 18.255
A70: Gröden | B70: Val Gardena | C70: 261759 | D70: -36.447 | E70: 1307863 | F70: -40.355 | G70: 4.996 | H70: 18290 | I70: 19.591
A72: Brixen | B72: Bressanone | C72: 156257 | D72: -9.445 | E72: 524371 | F72: -8.267 | G72: 3.356 | H72: 6029 | I72: 23.831
A73: Gossensaß | B73: Colle Isarco | C73: 33430 | D73: -24.907 | E73: 125579 | F73: -32.091 | G73: 3.756 | H73: 1907 | I73: 18.042
A74: Klausen, Barbian, Feldthurns und Villanders | B74: Chiusa, Barbiano, Velturno e Villandro | C74: 100349 | D74: 2.704 | E74: 393058 | F74: 6.508 | G74: 3.917 | H74: 3794 | I74: 28.384
A75: Lajen | B75: Laion | C75: 19705 | D75: -19.594 | E75: 89185 | F75: -17.805 | G75: 4.526 | H75: 1047 | I75: 23.349
A76: Lüsen | B76: Luson | C76: 22920 | D76: -10.507 | E76: 109791 | F76: -10.382 | G76: 4.79 | H76: 986 | I76: 30.507
A77: Gitschberg Jochtal | B77: Gitschberg Jochtal | C77: 113051 | D77: -19.11 | E77: 530058 | F77: -19.034 | G77: 4.689 | H77: 5447 | I77: 26.661
A78: Natz-Schabs | B78: Naz-Sciaves | C78: 41663 | D78: -10.931 | E78: 204190 | F78: -9.554 | G78: 4.901 | H78: 2656 | I78: 21.067
A79: Ratschings | B79: Racines | C79: 82045 | D79: -31.174 | E79: 362075 | F79: -29.672 | G79: 4.413 | H79: 4306 | I79: 23.037
A80: Rodeneck | B80: Rodengo | C80: 13499 | D80: -17.265 | E80: 66207 | F80: -7.704 | G80: 4.905 | H80: 948 | I80: 19.144
A81: Sterzing | B81: Vipiteno | C81: 114581 | D81: -11.313 | E81: 298153 | F81: -13.409 | G81: 2.602 | H81: 3429 | I81: 23.826
A82: Villnöß | B82: Funes | C82: 31139 | D82: 2.062 | E82: 136800 | F82: 1.749 | G82: 4.393 | H82: 1460 | I82: 25.671
A83: Eisacktal | B83: Valle Isarco | C83: 728639 | D83: -13.94 | E83: 2839467 | F83: -14.017 | G83: 3.897 | H83: 32007 | I83: 24.306
A85: Ahrntal | B85: Valle Aurina | C85: 91330 | D85: -33.453 | E85: 480497 | F85: -32.344 | G85: 5.261 | H85: 5565 | I85: 23.658
A86: Antholzertal | B86: Valle Anterselva | C86: 67533 | D86: -20.906 | E86: 321090 | F86: -20.127 | G86: 4.755 | H86: 3611 | I86: 24.365
A87: Bruneck Kronplatz | B87: Brunico Plan de Corones | C87: 182677 | D87: -28.396 | E87: 839861 | F87: -27.315 | G87: 4.598 | H87: 8062 | I87: 28.543
A88: Gsieser Tal-Welsberg-Taisten | B88: Val Casies-Monguelfo-Tesido | C88: 66167 | D88: -20.723 | E88: 329526 | F88: -18.733 | G88: 4.98 | H88: 3147 | I88: 28.688
A89: Kiens | B89: Chienes | C89: 33256 | D89: -37.097 | E89: 159978 | F89: -33.161 | G89: 4.811 | H89: 1682 | I89: 26.058
A90: Olang | B90: Valdaora | C90: 57762 | D90: -36.065 | E90: 298799 | F90: -35.356 | G90: 5.173 | H90: 3082 | I90: 26.562
A91: Sand in Taufers | B91: Campo Tures | C91: 54828 | D91: -36.175 | E91: 297652 | F91: -30.919 | G91: 5.429 | H91: 4102 | I91: 19.883
A92: St.Vigil in Enneberg | B92: S.Vigilio di Marebbe | C92: 87717 | D92: -38.148 | E92: 408138 | F92: -41.21 | G92: 4.653 | H92: 5959 | I92: 18.766
A93: Terenten | B93: Terento | C93: 18678 | D93: -32.779 | E93: 89301 | F93: -27.302 | G93: 4.781 | H93: 1017 | I93: 24.057
A94: Kronplatz | B94: Plan de Corones | C94: 659948 | D94: -31.25 | E94: 3224842 | F94: -30.239 | G94: 4.887 | H94: 36225 | I94: 24.39
A96: Abtei | B96: Badia | C96: 115588 | D96: -40.486 | E96: 581072 | F96: -43.31 | G96: 5.027 | H96: 9034 | I96: 17.623
A97: Corvara-Colfosco | B97: Corvara-Colfosco | C97: 92869 | D97: -41.088 | E97: 429516 | F97: -47.748 | G97: 4.625 | H97: 7667 | I97: 15.348
A98: Wengen | B98: La Valle | C98: 9399 | D98: -38.629 | E98: 52750 | F98: -35.513 | G98: 5.612 | H98: 726 | I98: 19.906
A99: Alta Badia | B99: Alta Badia | C99: 217856 | D99: -40.667 | E99: 1063338 | F99: -44.871 | G99: 4.881 | H99: 17427 | I99: 16.717
A101: Innichen | B101: S.Candido | C101: 66369 | D101: -34.742 | E101: 337398 | F101: -33.145 | G101: 5.084 | H101: 3643 | I101: 25.374
A102: Niederdorf | B102: Villabassa | C102: 23783 | D102: -25.683 | E102: 115055 | F102: -19.467 | G102: 4.838 | H102: 1327 | I102: 23.754
A103: Pragser Tal | B103: Valle di Braies | C103: 32353 | D103: -16.875 | E103: 109184 | F103: -17.151 | G103: 3.375 | H103: 1264 | I103: 23.666
A104: Sexten | B104: Sesto | C104: 96761 | D104: -28.242 | E104: 460746 | F104: -26.912 | G104: 4.762 | H104: 4672 | I104: 27.022
A105: Toblach | B105: Dobbiaco | C105: 106586 | D105: -17.68 | E105: 421700 | F105: -19.147 | G105: 3.956 | H105: 5273 | I105: 21.911
A106: Hochpustertal | B106: Alta Val Pusteria | C106: 325852 | D106: -25.425 | E106: 1444083 | F106: -25.227 | G106: 4.432 | H106: 16179 | I106: 24.455
A108: Ohne Tourismusverein | B108: Senza associazione turistica | C108: 12 | D108: -36.842 | E108: 961 | F108: -22.437 | G108: 80.083 | H108: 117 | I108: 13.857
A110: Südtirol insgesamt | B110: Totale provincia | C110: 4678276 | D110: -13.599 | E110: 21215844 | F110: -12.98 | G110: 4.535 | H110: 229160 | I110: 25.365

Sheet tab 14
A1: Tab. 14 | J1: INDEX / INDICE
A3: Übernachtungen, Beherbergungsdichte, Tourismusintensität, Bettenauslastung und Qualität nach Bezirksgemeinschaft - Tourismusjahre 2020/21 und 2019/20
A5: Presenze, densità ricettiva, intensità turistica, utilizzazione dei posti letto e qualità per comunità comprensoriale - Anni turistici 2020/21 e 2019/20
B8: Einwohner 30. April | C8: Übernachtungen | D8: Betriebe | E8: Betten | F8: Beherbergungsdichte | G8: Tourismusintensität | H8: Brutto-Auslastung der Betten in % | I8: Qualität
A10: Bezirksgemeinschaften | B10: Abitanti 30 aprile | C10: Presenze | D10: esercizi | E10: letti | F10: Densità ricettiva | G10: Intensità turistica | H10: Utilizzazione lorda posti letto in % | I10: Qualità | J10: Comunità comprensoriali
A13: Vinschgau | B13: 36193 | C13: 1548364 | D13: 721 | E13: 19411 | F13: 13.46116505 | G13: 11.72075581 | H13: 21.9 | I13: 4.5 | J13: Val Venosta
A14: Burggrafenamt | B14: 105209 | C14: 5496037 | D14: 2068 | E14: 44827 | F14: 40.71480472 | G14: 14.31211742 | H14: 33.6 | I14: 5.9 | J14: Burgraviato
A15: Überetsch-Südt. Unterland | B15: 76422 | C15: 1794630 | D15: 935 | E15: 18414 | F15: 43.42924528 | G15: 6.433742274 | H15: 26.7 | I15: 3.5 | J15: Oltradige-Bassa Atesina
A16: Bozen | B16: 107411 | C16: 455815 | D16: 239 | E16: 4192 | F16: 80.61538462 | G16: 1.162644626 | H16: 29.8 | I16: 4.9 | J16: Bolzano
A17: Salten-Schlern | B17: 50715 | C17: 3348307 | D17: 2170 | E17: 40463 | F17: 39.0192864 | G17: 18.08822604 | H17: 22.7 | I17: 5.5 | J17: Salto-Sciliar
A18: Eisacktal | B18: 54294 | C18: 1996204 | D18: 965 | E18: 21101 | F18: 33.81570513 | G18: 10.07303211 | H18: 25.9 | I18: 2.7 | J18: Valle Isarco
A19: Wipptal | B19: 20676 | C19: 799582 | D19: 317 | E19: 9842 | F19: 15.14153846 | G19: 10.59506489 | H19: 22.3 | I19: 3.4 | J19: Alta Valle Isarco
A20: Pustertal | B20: 84117 | C20: 5776905 | D20: 3288 | E20: 70913 | F20: 34.22442085 | G20: 18.81562227 | H20: 22.3 | I20: 3.2 | J20: Val Pusteria
A22: Insgesamt | B22: 533037 | C22: 21215844 | D22: 10701 | E22: 229160 | F22: 30.95920022 | G22: 10.90460887 | H22: 25.4 | I22: 3.970654714 | J22: Totale
